{"text_format":"1","workbook":"xlsx","n_sheets":12,"sheets":["General Overview","OVERALL RATING","FITMENT","N1 Fitment","AEB Pedestrian","AEB Cyclist","AEB Car-to-Car","LSS","SAS 2023","SAS 2020","OSM","Summary"],"not_rendered":{"charts":0,"images":3,"macros":1,"external_links":0,"defined_names":43,"comments":1,"pivot_tables":0},"unopened":[],"bounds":{"document_bytes":16777216,"sheet_cells":100000,"rows_first":2000,"rows_last":500,"rows_between":2000,"halvings":0,"cell_chars":16384,"cell_head_chars":4096},"cells_cut":0,"cells_raw":0,"read":"whole","date_system":"1900"}

{"sheet":"General Overview","index":0,"n_rows":24,"n_cols":26,"rows_kept":24,"cut":false,"hidden":false,"merged":[[24,2,24,4],[16,2,16,4],[20,2,20,3],[21,2,21,3],[14,2,14,4],[13,2,13,4],[15,2,15,4],[19,2,19,3],[1,1,1,4],[2,2,2,4],[3,2,3,4],[7,2,7,4],[8,2,8,4],[12,2,12,4],[17,2,17,4],[18,2,18,4],[9,2,9,4],[11,2,11,4]]}
[null,null,null,null,null,null,null,null,null,null,null,null,null,null,null,null,null,null,null,null,null,null,null,null,null,"v2023.0.1"]
[3,"VEHICLE SPECIFICATION",null,null,null,"YEAR OF TEST",2024,null,null,null,null,null,null,null,null,null,null,null,null,null,null,null,null,"3 door hatchback"]
[null,"Make",null,null,null,"AEB Car-to-Car",null,null,null,null,null,null,null,null,null,null,null,null,null,null,null,null,null,"3 door wgon"]
[null,"Model",null,null,null,"AEB Pedestrian tests",null,null,null,null,null,null,null,null,null,null,null,null,null,null,null,null,null,"5 door wagon"]
[null,"Tested Variant",null,null,null,"AEB Cyclist tests"]
[null,"Chassis",null,null,null,"LSS tests"]
[null,"Type Approval",null,null,null,"SAS tests",null,null,null,null,null,null,null,null,null,null,null,null,null,null,null,null,null,"5 door SUV"]
[null,"VIN of test vehicle",null,null,null,"OSM test"]
[null,"Kerb weight (kg)"]
[null,"Gross Vehicle Weight(kg)",null,null,null,null,null,null,null,null,null,null,null,null,null,null,null,null,null,null,null,null,null,"3 door SUV"]
[null,"Maximum Payload"]
[null,"Test weight (kg)",null,null,null,null,null,null,null,null,null,null,null,null,null,null,null,null,null,null,null,null,null,"5 door MPV"]
[null,"Engine"]
[null,"Trim level"]
[null,"Safety Pack"]
[null,"Body Type"]
[null,"Generation"]
[null,"Hand of drive"]
[null,"Seat arrangement"]
[null,"front row"]
[null,"second row"]
[null,"third row"]
[]
[null,"Speed Assist System"]

{"sheet":"OVERALL RATING","index":1,"n_rows":19,"n_cols":8,"rows_kept":19,"cut":false,"hidden":false,"merged":[[11,2,11,4],[11,5,11,7],[1,2,1,4],[3,2,3,4],[3,5,3,7],[4,2,4,4],[4,5,4,7],[16,1,16,7],[17,1,17,7],[18,1,18,7],[19,1,19,7],[12,2,12,4],[12,5,12,7],[13,2,13,4],[13,5,13,7],[14,2,14,4],[14,5,14,7]]}
[]
[null,null,{"$f":"CONCATENATE('General Overview'!C3:E3,\" \",'General Overview'!C4)","v":" "},null,null,{"$f":"IF(F14>=80,\"PLATINUM\",IF(F14>=60,\"GOLD\",IF(F14>=40,\"SILVER\",IF(F14>=20,\"BRONZE\",\"NOT RECOMMENDED\"))))","v":"NOT RECOMMENDED"}]
[]
[null,null,"FITMENT\n",null,null,"PERFORMANCE\n"]
[null,null,{"$f":"ROUND(C12,1)","v":0},null,null,{"$f":"ROUND(F12,1)","v":0}]
[null,30,"AEB Car-to-Car","best fitment",{"$f":"'N1 Fitment'!N35","v":"N/A"},"AEB Car-to-Car",{"$f":"'AEB Car-to-Car'!D112/6*B6","v":0},{"$f":"CONCATENATE(\"out of \",B6)","v":"out of 30"}]
[null,10,"AEB Pedestrian","best fitment",{"$f":"'N1 Fitment'!O35","v":"N/A"},"AEB Pedestrian",{"$f":"'AEB Pedestrian'!D126/9*B7","v":0},"out of 10"]
[null,10,"AEB Cyclist","best fitment",{"$f":"'N1 Fitment'!P35","v":"N/A"},"AEB Cyclist",{"$f":"'AEB Cyclist'!D86/9*B8","v":0},"out of 10"]
[null,20,"LSS","best fitment",{"$f":"'N1 Fitment'!AD35","v":"N/A"},"LSS",{"$f":"LSS!D72/4*B9","v":0},"out of 20"]
[null,15,"SAS","best fitment",{"$f":"'N1 Fitment'!AF35","v":"N/A"},"SAS",{"$f":"IF('General Overview'!C24=\"2020\",'SAS 2020'!D49/3*B10,'SAS 2023'!D72/3*B10)","v":0},"out of 15"]
[null,15,"OSM","best fitment",{"$f":"'N1 Fitment'!AE35","v":"N/A"},"OSM",{"$f":"OSM!D20/3*B11","v":0},"out of 15"]
[null,"Total Score",null,null,null,{"$f":"SUM(G6:G11)","v":0}]
[null,"Max Points available",null,null,null,100]
[null,"Normalised Score",null,null,null,{"$f":"INT(F12/F13*100)","v":0}]
[null,"Weight",null,null,null,0.5]
[null,null,null,null,{"$f":"C14/100","v":0},null,null,{"$f":"F14/100","v":0}]
[null,"COMMENTS"]
["Verdict"]
["Comment"]

{"sheet":"FITMENT","index":2,"n_rows":47,"n_cols":7,"rows_kept":47,"cut":false,"hidden":true,"merged":[[1,3,3,5],[1,1,3,2],[24,1,24,2],[35,1,35,2],[46,1,46,2],[13,1,13,2]]}
[]
[null,"FITMENT"]
[]
[]
[null,"AEB FITMENT",null,"AEB CAR-TO-CAR","AEB PEDESTRIAN","AEB CYCLIST","AEB"]
[null,null,"France",null,null,null,{"$f":"IF(COUNTIF(D6:F6,\"Standard\")>0,\"Standard\",IF(COUNTIF(D6:F6,\"Optional\")>0,\"Optional\",\"N/A\"))","v":"N/A"}]
[null,null,"Germany",null,null,null,{"$f":"IF(COUNTIF(D7:F7,\"Standard\")>0,\"Standard\",IF(COUNTIF(D7:F7,\"Optional\")>0,\"Optional\",\"N/A\"))","v":"N/A"}]
[null,null,"Italy",null,null,null,"N/A"]
[null,null,"Luxembourg",null,null,null,"N/A"]
[null,null,"Spain",null,null,null,"N/A"]
[null,null,"Sweden",null,null,null,"N/A"]
[null,null,"The Netherlands",null,null,null,"N/A"]
[null,null,"United Kingdom",null,null,null,"N/A"]
[null,"AEB FITMENT SUMMARY",null,{"$f":"IF(COUNTIF(D6:D13,\"Standard\")>0,\"Standard\",IF(COUNTIF(D6:D13,\"Optional\")>0,\"Optional\",\"N/A\"))","v":"N/A"},{"$f":"IF(COUNTIF(E6:E13,\"Standard\")>0,\"Standard\",IF(COUNTIF(E6:E13,\"Optional\")>0,\"Optional\",\"N/A\"))","v":"N/A"},{"$f":"IF(COUNTIF(F6:F13,\"Standard\")>0,\"Standard\",IF(COUNTIF(F6:F13,\"Optional\")>0,\"Optional\",\"N/A\"))","v":"N/A"},{"$f":"IF(COUNTIF(G6:G13,\"Standard\")>0,\"Standard\",IF(COUNTIF(G6:G13,\"Optional\")>0,\"Optional\",\"N/A\"))","v":"N/A"}]
[]
[null,"LSS FITMENT",null,"ELK/LKA","LDW","BLIS","LSS"]
[null,null,"France",null,null,null,{"$f":"IF(COUNTIF(D17:F17,\"Standard\")>0,\"Standard\",IF(COUNTIF(D17:F17,\"Optional\")>0,\"Optional\",\"N/A\"))","v":"N/A"}]
[null,null,"Germany",null,null,null,{"$f":"IF(COUNTIF(D18:F18,\"Standard\")>0,\"Standard\",IF(COUNTIF(D18:F18,\"Optional\")>0,\"Optional\",\"N/A\"))","v":"N/A"}]
[null,null,"Italy",null,null,null,"N/A"]
[null,null,"Luxembourg",null,null,null,"N/A"]
[null,null,"Spain",null,null,null,"N/A"]
[null,null,"Sweden",null,null,null,"N/A"]
[null,null,"The Netherlands",null,null,null,"N/A"]
[null,null,"United Kingdom",null,null,null,"N/A"]
[null,"LSS FITMENT SUMMARY",null,{"$f":"IF(COUNTIF(D17:D24,\"Standard\")>0,\"Standard\",IF(COUNTIF(D17:D24,\"Optional\")>0,\"Optional\",\"N/A\"))","v":"N/A"},{"$f":"IF(COUNTIF(E17:E24,\"Standard\")>0,\"Standard\",IF(COUNTIF(E17:E24,\"Optional\")>0,\"Optional\",\"N/A\"))","v":"N/A"},{"$f":"IF(COUNTIF(F17:F24,\"Standard\")>0,\"Standard\",IF(COUNTIF(F17:F24,\"Optional\")>0,\"Optional\",\"N/A\"))","v":"N/A"},{"$f":"IF(COUNTIF(G17:G24,\"Standard\")>0,\"Standard\",IF(COUNTIF(G17:G24,\"Optional\")>0,\"Optional\",\"N/A\"))","v":"N/A"}]
[]
[null,"SAS FITMENT",null,"SLIF","SCF",null,"SAS"]
[null,null,"France",null,null,null,{"$f":"IF(COUNTIF(D28:F28,\"Standard\")>0,\"Standard\",IF(COUNTIF(D28:F28,\"Optional\")>0,\"Optional\",\"N/A\"))","v":"N/A"}]
[null,null,"Germany",null,null,null,{"$f":"IF(COUNTIF(D29:F29,\"Standard\")>0,\"Standard\",IF(COUNTIF(D29:F29,\"Optional\")>0,\"Optional\",\"N/A\"))","v":"N/A"}]
[null,null,"Italy",null,null,null,"N/A"]
[null,null,"Luxembourg",null,null,null,"N/A"]
[null,null,"Spain",null,null,null,"N/A"]
[null,null,"Sweden",null,null,null,"N/A"]
[null,null,"The Netherlands",null,null,null,"N/A"]
[null,null,"United Kingdom",null,null,null,"N/A"]
[null,"SAS FITMENT SUMMARY",null,{"$f":"IF(COUNTIF(D28:D35,\"Standard\")>0,\"Standard\",IF(COUNTIF(D28:D35,\"Optional\")>0,\"Optional\",\"N/A\"))","v":"N/A"},{"$f":"IF(COUNTIF(E28:E35,\"Standard\")>0,\"Standard\",IF(COUNTIF(E28:E35,\"Optional\")>0,\"Optional\",\"N/A\"))","v":"N/A"},null,{"$f":"IF(COUNTIF(G28:G35,\"Standard\")>0,\"Standard\",IF(COUNTIF(G28:G35,\"Optional\")>0,\"Optional\",\"N/A\"))","v":"N/A"}]
[]
[null,"OSM FITMENT",null,"SBR - Driver","SBR - Passenger","Attention Assist","OSM"]
[null,null,"France",null,null,null,{"$f":"IF(COUNTIF(D39:F39,\"Standard\")>0,\"Standard\",IF(COUNTIF(D39:F39,\"Optional\")>0,\"Optional\",\"N/A\"))","v":"N/A"}]
[null,null,"Germany",null,null,null,{"$f":"IF(COUNTIF(D40:F40,\"Standard\")>0,\"Standard\",IF(COUNTIF(D40:F40,\"Optional\")>0,\"Optional\",\"N/A\"))","v":"N/A"}]
[null,null,"Italy",null,null,null,"N/A"]
[null,null,"Luxembourg",null,null,null,"N/A"]
[null,null,"Spain",null,null,null,"N/A"]
[null,null,"Sweden",null,null,null,"N/A"]
[null,null,"The Netherlands",null,null,null,"N/A"]
[null,null,"United Kingdom",null,null,null,"N/A"]
[null,"OSM FITMENT SUMMARY",null,{"$f":"IF(COUNTIF(D39:D46,\"Standard\")>0,\"Standard\",IF(COUNTIF(D39:D46,\"Optional\")>0,\"Optional\",\"N/A\"))","v":"N/A"},{"$f":"IF(COUNTIF(E39:E46,\"Standard\")>0,\"Standard\",IF(COUNTIF(E39:E46,\"Optional\")>0,\"Optional\",\"N/A\"))","v":"N/A"},{"$f":"IF(COUNTIF(F39:F46,\"Standard\")>0,\"Standard\",IF(COUNTIF(F39:F46,\"Optional\")>0,\"Optional\",\"N/A\"))","v":"N/A"},{"$f":"IF(COUNTIF(G39:G46,\"Standard\")>0,\"Standard\",IF(COUNTIF(G39:G46,\"Optional\")>0,\"Optional\",\"N/A\"))","v":"N/A"}]

{"sheet":"N1 Fitment","index":3,"n_rows":70,"n_cols":32,"rows_kept":70,"cut":false,"hidden":false,"merged":[[2,19,2,23],[2,24,2,25],[1,29,1,31],[1,1,3,1],[1,3,1,12],[1,13,1,25],[1,26,1,27],[2,3,2,4],[2,5,2,7],[2,8,2,10],[2,11,2,12],[2,13,2,15],[2,16,2,18]]}
[{"$f":"CONCATENATE('General Overview'!C3,\" \",'General Overview'!C4)","v":" "}]
["All N1 Variants","Country",null,"PASSIVE SAFETY",null,null,null,null,null,null,null,null,null,"ACTIVE SAFETY",null,null,null,null,null,null,null,null,null,null,null,null,"OTHER"]
[null,null,null,"Driver",null,"Centre",null,null,"Passenger",null,null,"Dr & Pass",null,"AEB",null,null,"Lane Support",null,null,"Occupant Status",null,null,null,null,"Speed Assistance",null,null,null,null,"LSS","OSM","SAS"]
[null,null,"CODE","Load-\nLimiter","Pre-\nTensioner","Airbag","Load-\nLimiter","Pre-\nTensioner","Airbag","Load-\nLimiter","Pre-\nTensioner","Side\nCurtain AB","Centre\nAirbag","Car-to-Car","Pedestrian","Cyclist","Lane Keep\nAssist","Lane Dep.\nWarning","Blind-spot\nInformation","Attention\nAssist","Direct Dr\nMonitoring","SBR\nDriver","SBR\nCentre","SBR\nPassenger","Speed\nLimiter","Speed Limit\nInformation","Alcolock\nInterface","AD Highway\nAssist","Comment","LSS","OSM","SAS"]
[null,null,null,1,2,3,4,5,6,7,8,9,10,11,12,13,14,15,16,17,18,19,20,21,22,23,24,25]
[null,"Austria","AT",null,null,null,null,null,null,null,null,null,null,null,null,null,null,null,null,null,null,null,null,null,null,null,null,null,null,{"$f":"IF(OR(Q6:S6=\"Std\"),\"Std\",IF(OR(Q6:S6=\"Opt1\",Q6:S6=\"Opt2\"),\"Opt\",\"N/A\"))","v":"N/A"},{"$f":"IF(OR(T6:X6=\"Std\"),\"Std\",IF(OR(T6:X6=\"Opt1\",T6:X6=\"Opt2\"),\"Opt\",\"N/A\"))","v":"N/A"},{"$f":"IF(OR(Y6:Z6=\"Std\"),\"Std\",IF(OR(Y6:Z6=\"Opt1\",Y6:Z6=\"Opt2\"),\"Opt\",\"N/A\"))","v":"N/A"}]
[null,"Belgium","BE",null,null,null,null,null,null,null,null,null,null,null,null,null,null,null,null,null,null,null,null,null,null,null,null,null,null,{"$f":"IF(OR(Q7:S7=\"Std\"),\"Std\",IF(OR(Q7:S7=\"Opt1\",Q7:S7=\"Opt2\"),\"Opt\",\"N/A\"))","v":"N/A"},{"$f":"IF(OR(T7:X7=\"Std\"),\"Std\",IF(OR(T7:X7=\"Opt1\",T7:X7=\"Opt2\"),\"Opt\",\"N/A\"))","v":"N/A"},{"$f":"IF(OR(Y7:Z7=\"Std\"),\"Std\",IF(OR(Y7:Z7=\"Opt1\",Y7:Z7=\"Opt2\"),\"Opt\",\"N/A\"))","v":"N/A"}]
[null,"Bulgaria","BG",null,null,null,null,null,null,null,null,null,null,null,null,null,null,null,null,null,null,null,null,null,null,null,null,null,null,{"$f":"IF(OR(Q8:S8=\"Std\"),\"Std\",IF(OR(Q8:S8=\"Opt1\",Q8:S8=\"Opt2\"),\"Opt\",\"N/A\"))","v":"N/A"},{"$f":"IF(OR(T8:X8=\"Std\"),\"Std\",IF(OR(T8:X8=\"Opt1\",T8:X8=\"Opt2\"),\"Opt\",\"N/A\"))","v":"N/A"},{"$f":"IF(OR(Y8:Z8=\"Std\"),\"Std\",IF(OR(Y8:Z8=\"Opt1\",Y8:Z8=\"Opt2\"),\"Opt\",\"N/A\"))","v":"N/A"}]
[null,"Croatia","HR",null,null,null,null,null,null,null,null,null,null,null,null,null,null,null,null,null,null,null,null,null,null,null,null,null,null,{"$f":"IF(OR(Q9:S9=\"Std\"),\"Std\",IF(OR(Q9:S9=\"Opt1\",Q9:S9=\"Opt2\"),\"Opt\",\"N/A\"))","v":"N/A"},{"$f":"IF(OR(T9:X9=\"Std\"),\"Std\",IF(OR(T9:X9=\"Opt1\",T9:X9=\"Opt2\"),\"Opt\",\"N/A\"))","v":"N/A"},{"$f":"IF(OR(Y9:Z9=\"Std\"),\"Std\",IF(OR(Y9:Z9=\"Opt1\",Y9:Z9=\"Opt2\"),\"Opt\",\"N/A\"))","v":"N/A"}]
[null,"Cyprus","CY",null,null,null,null,null,null,null,null,null,null,null,null,null,null,null,null,null,null,null,null,null,null,null,null,null,null,{"$f":"IF(OR(Q10:S10=\"Std\"),\"Std\",IF(OR(Q10:S10=\"Opt1\",Q10:S10=\"Opt2\"),\"Opt\",\"N/A\"))","v":"N/A"},{"$f":"IF(OR(T10:X10=\"Std\"),\"Std\",IF(OR(T10:X10=\"Opt1\",T10:X10=\"Opt2\"),\"Opt\",\"N/A\"))","v":"N/A"},{"$f":"IF(OR(Y10:Z10=\"Std\"),\"Std\",IF(OR(Y10:Z10=\"Opt1\",Y10:Z10=\"Opt2\"),\"Opt\",\"N/A\"))","v":"N/A"}]
[null,"Czech Republic","CZ",null,null,null,null,null,null,null,null,null,null,null,null,null,null,null,null,null,null,null,null,null,null,null,null,null,null,{"$f":"IF(OR(Q11:S11=\"Std\"),\"Std\",IF(OR(Q11:S11=\"Opt1\",Q11:S11=\"Opt2\"),\"Opt\",\"N/A\"))","v":"N/A"},{"$f":"IF(OR(T11:X11=\"Std\"),\"Std\",IF(OR(T11:X11=\"Opt1\",T11:X11=\"Opt2\"),\"Opt\",\"N/A\"))","v":"N/A"},{"$f":"IF(OR(Y11:Z11=\"Std\"),\"Std\",IF(OR(Y11:Z11=\"Opt1\",Y11:Z11=\"Opt2\"),\"Opt\",\"N/A\"))","v":"N/A"}]
[null,"Denmark","DK",null,null,null,null,null,null,null,null,null,null,null,null,null,null,null,null,null,null,null,null,null,null,null,null,null,null,{"$f":"IF(OR(Q12:S12=\"Std\"),\"Std\",IF(OR(Q12:S12=\"Opt1\",Q12:S12=\"Opt2\"),\"Opt\",\"N/A\"))","v":"N/A"},{"$f":"IF(OR(T12:X12=\"Std\"),\"Std\",IF(OR(T12:X12=\"Opt1\",T12:X12=\"Opt2\"),\"Opt\",\"N/A\"))","v":"N/A"},{"$f":"IF(OR(Y12:Z12=\"Std\"),\"Std\",IF(OR(Y12:Z12=\"Opt1\",Y12:Z12=\"Opt2\"),\"Opt\",\"N/A\"))","v":"N/A"}]
[null,"Estonia","EE",null,null,null,null,null,null,null,null,null,null,null,null,null,null,null,null,null,null,null,null,null,null,null,null,null,null,{"$f":"IF(OR(Q13:S13=\"Std\"),\"Std\",IF(OR(Q13:S13=\"Opt1\",Q13:S13=\"Opt2\"),\"Opt\",\"N/A\"))","v":"N/A"},{"$f":"IF(OR(T13:X13=\"Std\"),\"Std\",IF(OR(T13:X13=\"Opt1\",T13:X13=\"Opt2\"),\"Opt\",\"N/A\"))","v":"N/A"},{"$f":"IF(OR(Y13:Z13=\"Std\"),\"Std\",IF(OR(Y13:Z13=\"Opt1\",Y13:Z13=\"Opt2\"),\"Opt\",\"N/A\"))","v":"N/A"}]
[null,"Finland","FI",null,null,null,null,null,null,null,null,null,null,null,null,null,null,null,null,null,null,null,null,null,null,null,null,null,null,{"$f":"IF(OR(Q14:S14=\"Std\"),\"Std\",IF(OR(Q14:S14=\"Opt1\",Q14:S14=\"Opt2\"),\"Opt\",\"N/A\"))","v":"N/A"},{"$f":"IF(OR(T14:X14=\"Std\"),\"Std\",IF(OR(T14:X14=\"Opt1\",T14:X14=\"Opt2\"),\"Opt\",\"N/A\"))","v":"N/A"},{"$f":"IF(OR(Y14:Z14=\"Std\"),\"Std\",IF(OR(Y14:Z14=\"Opt1\",Y14:Z14=\"Opt2\"),\"Opt\",\"N/A\"))","v":"N/A"}]
[null,"France","FR",null,null,null,null,null,null,null,null,null,null,null,null,null,null,null,null,null,null,null,null,null,null,null,null,null,null,{"$f":"IF(OR(Q15:S15=\"Std\"),\"Std\",IF(OR(Q15:S15=\"Opt1\",Q15:S15=\"Opt2\"),\"Opt\",\"N/A\"))","v":"N/A"},{"$f":"IF(OR(T15:X15=\"Std\"),\"Std\",IF(OR(T15:X15=\"Opt1\",T15:X15=\"Opt2\"),\"Opt\",\"N/A\"))","v":"N/A"},{"$f":"IF(OR(Y15:Z15=\"Std\"),\"Std\",IF(OR(Y15:Z15=\"Opt1\",Y15:Z15=\"Opt2\"),\"Opt\",\"N/A\"))","v":"N/A"}]
[null,"Germany","DE",null,null,null,null,null,null,null,null,null,null,null,null,null,null,null,null,null,null,null,null,null,null,null,null,null,null,{"$f":"IF(OR(Q16:S16=\"Std\"),\"Std\",IF(OR(Q16:S16=\"Opt1\",Q16:S16=\"Opt2\"),\"Opt\",\"N/A\"))","v":"N/A"},{"$f":"IF(OR(T16:X16=\"Std\"),\"Std\",IF(OR(T16:X16=\"Opt1\",T16:X16=\"Opt2\"),\"Opt\",\"N/A\"))","v":"N/A"},{"$f":"IF(OR(Y16:Z16=\"Std\"),\"Std\",IF(OR(Y16:Z16=\"Opt1\",Y16:Z16=\"Opt2\"),\"Opt\",\"N/A\"))","v":"N/A"}]
[null,"Greece","GR",null,null,null,null,null,null,null,null,null,null,null,null,null,null,null,null,null,null,null,null,null,null,null,null,null,null,{"$f":"IF(OR(Q17:S17=\"Std\"),\"Std\",IF(OR(Q17:S17=\"Opt1\",Q17:S17=\"Opt2\"),\"Opt\",\"N/A\"))","v":"N/A"},{"$f":"IF(OR(T17:X17=\"Std\"),\"Std\",IF(OR(T17:X17=\"Opt1\",T17:X17=\"Opt2\"),\"Opt\",\"N/A\"))","v":"N/A"},{"$f":"IF(OR(Y17:Z17=\"Std\"),\"Std\",IF(OR(Y17:Z17=\"Opt1\",Y17:Z17=\"Opt2\"),\"Opt\",\"N/A\"))","v":"N/A"}]
[null,"Hungary","HU",null,null,null,null,null,null,null,null,null,null,null,null,null,null,null,null,null,null,null,null,null,null,null,null,null,null,{"$f":"IF(OR(Q18:S18=\"Std\"),\"Std\",IF(OR(Q18:S18=\"Opt1\",Q18:S18=\"Opt2\"),\"Opt\",\"N/A\"))","v":"N/A"},{"$f":"IF(OR(T18:X18=\"Std\"),\"Std\",IF(OR(T18:X18=\"Opt1\",T18:X18=\"Opt2\"),\"Opt\",\"N/A\"))","v":"N/A"},{"$f":"IF(OR(Y18:Z18=\"Std\"),\"Std\",IF(OR(Y18:Z18=\"Opt1\",Y18:Z18=\"Opt2\"),\"Opt\",\"N/A\"))","v":"N/A"}]
[null,"Ireland","IE",null,null,null,null,null,null,null,null,null,null,null,null,null,null,null,null,null,null,null,null,null,null,null,null,null,null,{"$f":"IF(OR(Q19:S19=\"Std\"),\"Std\",IF(OR(Q19:S19=\"Opt1\",Q19:S19=\"Opt2\"),\"Opt\",\"N/A\"))","v":"N/A"},{"$f":"IF(OR(T19:X19=\"Std\"),\"Std\",IF(OR(T19:X19=\"Opt1\",T19:X19=\"Opt2\"),\"Opt\",\"N/A\"))","v":"N/A"},{"$f":"IF(OR(Y19:Z19=\"Std\"),\"Std\",IF(OR(Y19:Z19=\"Opt1\",Y19:Z19=\"Opt2\"),\"Opt\",\"N/A\"))","v":"N/A"}]
[null,"Italy","IT",null,null,null,null,null,null,null,null,null,null,null,null,null,null,null,null,null,null,null,null,null,null,null,null,null,null,{"$f":"IF(OR(Q20:S20=\"Std\"),\"Std\",IF(OR(Q20:S20=\"Opt1\",Q20:S20=\"Opt2\"),\"Opt\",\"N/A\"))","v":"N/A"},{"$f":"IF(OR(T20:X20=\"Std\"),\"Std\",IF(OR(T20:X20=\"Opt1\",T20:X20=\"Opt2\"),\"Opt\",\"N/A\"))","v":"N/A"},{"$f":"IF(OR(Y20:Z20=\"Std\"),\"Std\",IF(OR(Y20:Z20=\"Opt1\",Y20:Z20=\"Opt2\"),\"Opt\",\"N/A\"))","v":"N/A"}]
[null,"Latvia","LV",null,null,null,null,null,null,null,null,null,null,null,null,null,null,null,null,null,null,null,null,null,null,null,null,null,null,{"$f":"IF(OR(Q21:S21=\"Std\"),\"Std\",IF(OR(Q21:S21=\"Opt1\",Q21:S21=\"Opt2\"),\"Opt\",\"N/A\"))","v":"N/A"},{"$f":"IF(OR(T21:X21=\"Std\"),\"Std\",IF(OR(T21:X21=\"Opt1\",T21:X21=\"Opt2\"),\"Opt\",\"N/A\"))","v":"N/A"},{"$f":"IF(OR(Y21:Z21=\"Std\"),\"Std\",IF(OR(Y21:Z21=\"Opt1\",Y21:Z21=\"Opt2\"),\"Opt\",\"N/A\"))","v":"N/A"}]
[null,"Lithuania","LT",null,null,null,null,null,null,null,null,null,null,null,null,null,null,null,null,null,null,null,null,null,null,null,null,null,null,{"$f":"IF(OR(Q22:S22=\"Std\"),\"Std\",IF(OR(Q22:S22=\"Opt1\",Q22:S22=\"Opt2\"),\"Opt\",\"N/A\"))","v":"N/A"},{"$f":"IF(OR(T22:X22=\"Std\"),\"Std\",IF(OR(T22:X22=\"Opt1\",T22:X22=\"Opt2\"),\"Opt\",\"N/A\"))","v":"N/A"},{"$f":"IF(OR(Y22:Z22=\"Std\"),\"Std\",IF(OR(Y22:Z22=\"Opt1\",Y22:Z22=\"Opt2\"),\"Opt\",\"N/A\"))","v":"N/A"}]
[null,"Luxembourg","LU",null,null,null,null,null,null,null,null,null,null,null,null,null,null,null,null,null,null,null,null,null,null,null,null,null,null,{"$f":"IF(OR(Q23:S23=\"Std\"),\"Std\",IF(OR(Q23:S23=\"Opt1\",Q23:S23=\"Opt2\"),\"Opt\",\"N/A\"))","v":"N/A"},{"$f":"IF(OR(T23:X23=\"Std\"),\"Std\",IF(OR(T23:X23=\"Opt1\",T23:X23=\"Opt2\"),\"Opt\",\"N/A\"))","v":"N/A"},{"$f":"IF(OR(Y23:Z23=\"Std\"),\"Std\",IF(OR(Y23:Z23=\"Opt1\",Y23:Z23=\"Opt2\"),\"Opt\",\"N/A\"))","v":"N/A"}]
[null,"Malta","MT",null,null,null,null,null,null,null,null,null,null,null,null,null,null,null,null,null,null,null,null,null,null,null,null,null,null,{"$f":"IF(OR(Q24:S24=\"Std\"),\"Std\",IF(OR(Q24:S24=\"Opt1\",Q24:S24=\"Opt2\"),\"Opt\",\"N/A\"))","v":"N/A"},{"$f":"IF(OR(T24:X24=\"Std\"),\"Std\",IF(OR(T24:X24=\"Opt1\",T24:X24=\"Opt2\"),\"Opt\",\"N/A\"))","v":"N/A"},{"$f":"IF(OR(Y24:Z24=\"Std\"),\"Std\",IF(OR(Y24:Z24=\"Opt1\",Y24:Z24=\"Opt2\"),\"Opt\",\"N/A\"))","v":"N/A"}]
[null,"Netherlands","NL",null,null,null,null,null,null,null,null,null,null,null,null,null,null,null,null,null,null,null,null,null,null,null,null,null,null,{"$f":"IF(OR(Q25:S25=\"Std\"),\"Std\",IF(OR(Q25:S25=\"Opt1\",Q25:S25=\"Opt2\"),\"Opt\",\"N/A\"))","v":"N/A"},{"$f":"IF(OR(T25:X25=\"Std\"),\"Std\",IF(OR(T25:X25=\"Opt1\",T25:X25=\"Opt2\"),\"Opt\",\"N/A\"))","v":"N/A"},{"$f":"IF(OR(Y25:Z25=\"Std\"),\"Std\",IF(OR(Y25:Z25=\"Opt1\",Y25:Z25=\"Opt2\"),\"Opt\",\"N/A\"))","v":"N/A"}]
[null,"Norway","NO",null,null,null,null,null,null,null,null,null,null,null,null,null,null,null,null,null,null,null,null,null,null,null,null,null,null,{"$f":"IF(OR(Q26:S26=\"Std\"),\"Std\",IF(OR(Q26:S26=\"Opt1\",Q26:S26=\"Opt2\"),\"Opt\",\"N/A\"))","v":"N/A"},{"$f":"IF(OR(T26:X26=\"Std\"),\"Std\",IF(OR(T26:X26=\"Opt1\",T26:X26=\"Opt2\"),\"Opt\",\"N/A\"))","v":"N/A"},{"$f":"IF(OR(Y26:Z26=\"Std\"),\"Std\",IF(OR(Y26:Z26=\"Opt1\",Y26:Z26=\"Opt2\"),\"Opt\",\"N/A\"))","v":"N/A"}]
[null,"Poland","PL",null,null,null,null,null,null,null,null,null,null,null,null,null,null,null,null,null,null,null,null,null,null,null,null,null,null,{"$f":"IF(OR(Q27:S27=\"Std\"),\"Std\",IF(OR(Q27:S27=\"Opt1\",Q27:S27=\"Opt2\"),\"Opt\",\"N/A\"))","v":"N/A"},{"$f":"IF(OR(T27:X27=\"Std\"),\"Std\",IF(OR(T27:X27=\"Opt1\",T27:X27=\"Opt2\"),\"Opt\",\"N/A\"))","v":"N/A"},{"$f":"IF(OR(Y27:Z27=\"Std\"),\"Std\",IF(OR(Y27:Z27=\"Opt1\",Y27:Z27=\"Opt2\"),\"Opt\",\"N/A\"))","v":"N/A"}]
[null,"Portugal","PT",null,null,null,null,null,null,null,null,null,null,null,null,null,null,null,null,null,null,null,null,null,null,null,null,null,null,{"$f":"IF(OR(Q28:S28=\"Std\"),\"Std\",IF(OR(Q28:S28=\"Opt1\",Q28:S28=\"Opt2\"),\"Opt\",\"N/A\"))","v":"N/A"},{"$f":"IF(OR(T28:X28=\"Std\"),\"Std\",IF(OR(T28:X28=\"Opt1\",T28:X28=\"Opt2\"),\"Opt\",\"N/A\"))","v":"N/A"},{"$f":"IF(OR(Y28:Z28=\"Std\"),\"Std\",IF(OR(Y28:Z28=\"Opt1\",Y28:Z28=\"Opt2\"),\"Opt\",\"N/A\"))","v":"N/A"}]
[null,"Romania","RO",null,null,null,null,null,null,null,null,null,null,null,null,null,null,null,null,null,null,null,null,null,null,null,null,null,null,{"$f":"IF(OR(Q29:S29=\"Std\"),\"Std\",IF(OR(Q29:S29=\"Opt1\",Q29:S29=\"Opt2\"),\"Opt\",\"N/A\"))","v":"N/A"},{"$f":"IF(OR(T29:X29=\"Std\"),\"Std\",IF(OR(T29:X29=\"Opt1\",T29:X29=\"Opt2\"),\"Opt\",\"N/A\"))","v":"N/A"},{"$f":"IF(OR(Y29:Z29=\"Std\"),\"Std\",IF(OR(Y29:Z29=\"Opt1\",Y29:Z29=\"Opt2\"),\"Opt\",\"N/A\"))","v":"N/A"}]
[null,"Slovakia","SK",null,null,null,null,null,null,null,null,null,null,null,null,null,null,null,null,null,null,null,null,null,null,null,null,null,null,{"$f":"IF(OR(Q30:S30=\"Std\"),\"Std\",IF(OR(Q30:S30=\"Opt1\",Q30:S30=\"Opt2\"),\"Opt\",\"N/A\"))","v":"N/A"},{"$f":"IF(OR(T30:X30=\"Std\"),\"Std\",IF(OR(T30:X30=\"Opt1\",T30:X30=\"Opt2\"),\"Opt\",\"N/A\"))","v":"N/A"},{"$f":"IF(OR(Y30:Z30=\"Std\"),\"Std\",IF(OR(Y30:Z30=\"Opt1\",Y30:Z30=\"Opt2\"),\"Opt\",\"N/A\"))","v":"N/A"}]
[null,"Slovenia","SI",null,null,null,null,null,null,null,null,null,null,null,null,null,null,null,null,null,null,null,null,null,null,null,null,null,null,{"$f":"IF(OR(Q31:S31=\"Std\"),\"Std\",IF(OR(Q31:S31=\"Opt1\",Q31:S31=\"Opt2\"),\"Opt\",\"N/A\"))","v":"N/A"},{"$f":"IF(OR(T31:X31=\"Std\"),\"Std\",IF(OR(T31:X31=\"Opt1\",T31:X31=\"Opt2\"),\"Opt\",\"N/A\"))","v":"N/A"},{"$f":"IF(OR(Y31:Z31=\"Std\"),\"Std\",IF(OR(Y31:Z31=\"Opt1\",Y31:Z31=\"Opt2\"),\"Opt\",\"N/A\"))","v":"N/A"}]
[null,"Spain","ES",null,null,null,null,null,null,null,null,null,null,null,null,null,null,null,null,null,null,null,null,null,null,null,null,null,null,{"$f":"IF(OR(Q32:S32=\"Std\"),\"Std\",IF(OR(Q32:S32=\"Opt1\",Q32:S32=\"Opt2\"),\"Opt\",\"N/A\"))","v":"N/A"},{"$f":"IF(OR(T32:X32=\"Std\"),\"Std\",IF(OR(T32:X32=\"Opt1\",T32:X32=\"Opt2\"),\"Opt\",\"N/A\"))","v":"N/A"},{"$f":"IF(OR(Y32:Z32=\"Std\"),\"Std\",IF(OR(Y32:Z32=\"Opt1\",Y32:Z32=\"Opt2\"),\"Opt\",\"N/A\"))","v":"N/A"}]
[null,"Sweden","SE",null,null,null,null,null,null,null,null,null,null,null,null,null,null,null,null,null,null,null,null,null,null,null,null,null,null,{"$f":"IF(OR(Q33:S33=\"Std\"),\"Std\",IF(OR(Q33:S33=\"Opt1\",Q33:S33=\"Opt2\"),\"Opt\",\"N/A\"))","v":"N/A"},{"$f":"IF(OR(T33:X33=\"Std\"),\"Std\",IF(OR(T33:X33=\"Opt1\",T33:X33=\"Opt2\"),\"Opt\",\"N/A\"))","v":"N/A"},{"$f":"IF(OR(Y33:Z33=\"Std\"),\"Std\",IF(OR(Y33:Z33=\"Opt1\",Y33:Z33=\"Opt2\"),\"Opt\",\"N/A\"))","v":"N/A"}]
[null,"United Kingdom","GB",null,null,null,null,null,null,null,null,null,null,null,null,null,null,null,null,null,null,null,null,null,null,null,null,null,null,{"$f":"IF(OR(Q34:S34=\"Std\"),\"Std\",IF(OR(Q34:S34=\"Opt1\",Q34:S34=\"Opt2\"),\"Opt\",\"N/A\"))","v":"N/A"},{"$f":"IF(OR(T34:X34=\"Std\"),\"Std\",IF(OR(T34:X34=\"Opt1\",T34:X34=\"Opt2\"),\"Opt\",\"N/A\"))","v":"N/A"},{"$f":"IF(OR(Y34:Z34=\"Std\"),\"Std\",IF(OR(Y34:Z34=\"Opt1\",Y34:Z34=\"Opt2\"),\"Opt\",\"N/A\"))","v":"N/A"}]
[null,"Europe",null,{"$f":"IF(AND(D6:D34=\"Std\"),\"Std\",IF(OR(D6:D34=\"Opt1\",D6:D34=\"Opt2\"),\"Opt\",\"N/A\"))","v":"N/A"},{"$f":"IF(AND(E6:E34=\"Std\"),\"Std\",IF(OR(E6:E34=\"Opt1\",E6:E34=\"Opt2\"),\"Opt\",\"N/A\"))","v":"N/A"},{"$f":"IF(AND(F6:F34=\"Std\"),\"Std\",IF(OR(F6:F34=\"Opt1\",F6:F34=\"Opt2\"),\"Opt\",\"N/A\"))","v":"N/A"},{"$f":"IF(AND(G6:G34=\"Std\"),\"Std\",IF(OR(G6:G34=\"Opt1\",G6:G34=\"Opt2\"),\"Opt\",\"N/A\"))","v":"N/A"},{"$f":"IF(AND(H6:H34=\"Std\"),\"Std\",IF(OR(H6:H34=\"Opt1\",H6:H34=\"Opt2\"),\"Opt\",\"N/A\"))","v":"N/A"},{"$f":"IF(AND(I6:I34=\"Std\"),\"Std\",IF(OR(I6:I34=\"Opt1\",I6:I34=\"Opt2\"),\"Opt\",\"N/A\"))","v":"N/A"},{"$f":"IF(AND(J6:J34=\"Std\"),\"Std\",IF(OR(J6:J34=\"Opt1\",J6:J34=\"Opt2\"),\"Opt\",\"N/A\"))","v":"N/A"},{"$f":"IF(AND(K6:K34=\"Std\"),\"Std\",IF(OR(K6:K34=\"Opt1\",K6:K34=\"Opt2\"),\"Opt\",\"N/A\"))","v":"N/A"},{"$f":"IF(AND(L6:L34=\"Std\"),\"Std\",IF(OR(L6:L34=\"Opt1\",L6:L34=\"Opt2\"),\"Opt\",\"N/A\"))","v":"N/A"},{"$f":"IF(AND(M6:M34=\"Std\"),\"Std\",IF(OR(M6:M34=\"Opt1\",M6:M34=\"Opt2\"),\"Opt\",\"N/A\"))","v":"N/A"},{"$f":"IF(AND(N6:N34=\"Std\"),\"Std\",IF(OR(N6:N34=\"Opt1\",N6:N34=\"Opt2\"),\"Opt\",\"N/A\"))","v":"N/A"},{"$f":"IF(AND(O6:O34=\"Std\"),\"Std\",IF(OR(O6:O34=\"Opt1\",O6:O34=\"Opt2\"),\"Opt\",\"N/A\"))","v":"N/A"},{"$f":"IF(AND(P6:P34=\"Std\"),\"Std\",IF(OR(P6:P34=\"Opt1\",P6:P34=\"Opt2\"),\"Opt\",\"N/A\"))","v":"N/A"},{"$f":"IF(AND(Q6:Q34=\"Std\"),\"Std\",IF(OR(Q6:Q34=\"Opt1\",Q6:Q34=\"Opt2\"),\"Opt\",\"N/A\"))","v":"N/A"},{"$f":"IF(AND(R6:R34=\"Std\"),\"Std\",IF(OR(R6:R34=\"Opt1\",R6:R34=\"Opt2\"),\"Opt\",\"N/A\"))","v":"N/A"},{"$f":"IF(AND(S6:S34=\"Std\"),\"Std\",IF(OR(S6:S34=\"Opt1\",S6:S34=\"Opt2\"),\"Opt\",\"N/A\"))","v":"N/A"},{"$f":"IF(AND(T6:T34=\"Std\"),\"Std\",IF(OR(T6:T34=\"Opt1\",T6:T34=\"Opt2\"),\"Opt\",\"N/A\"))","v":"N/A"},{"$f":"IF(AND(U6:U34=\"Std\"),\"Std\",IF(OR(U6:U34=\"Opt1\",U6:U34=\"Opt2\"),\"Opt\",\"N/A\"))","v":"N/A"},{"$f":"IF(AND(V6:V34=\"Std\"),\"Std\",IF(OR(V6:V34=\"Opt1\",V6:V34=\"Opt2\"),\"Opt\",\"N/A\"))","v":"N/A"},{"$f":"IF(AND(W6:W34=\"Std\"),\"Std\",IF(OR(W6:W34=\"Opt1\",W6:W34=\"Opt2\"),\"Opt\",\"N/A\"))","v":"N/A"},{"$f":"IF(AND(X6:X34=\"Std\"),\"Std\",IF(OR(X6:X34=\"Opt1\",X6:X34=\"Opt2\"),\"Opt\",\"N/A\"))","v":"N/A"},{"$f":"IF(AND(Y6:Y34=\"Std\"),\"Std\",IF(OR(Y6:Y34=\"Opt1\",Y6:Y34=\"Opt2\"),\"Opt\",\"N/A\"))","v":"N/A"},{"$f":"IF(AND(Z6:Z34=\"Std\"),\"Std\",IF(OR(Z6:Z34=\"Opt1\",Z6:Z34=\"Opt2\"),\"Opt\",\"N/A\"))","v":"N/A"},{"$f":"IF(AND(AA6:AA34=\"Std\"),\"Std\",IF(OR(AA6:AA34=\"Opt1\",AA6:AA34=\"Opt2\"),\"Opt\",\"N/A\"))","v":"N/A"},{"$f":"IF(AND(AB6:AB34=\"Std\"),\"Std\",IF(OR(AB6:AB34=\"Opt1\",AB6:AB34=\"Opt2\"),\"Opt\",\"N/A\"))","v":"N/A"},null,{"$f":"IF(AND(AD6:AD34=\"Std\"),\"Std\",IF(OR(AD6:AD34=\"Opt\"),\"Opt\",\"N/A\"))","v":"N/A"},{"$f":"IF(AND(AE6:AE34=\"Std\"),\"Std\",IF(OR(AE6:AE34=\"Opt\"),\"Opt\",\"N/A\"))","v":"N/A"},{"$f":"IF(AND(AF6:AF34=\"Std\"),\"Std\",IF(OR(AF6:AF34=\"Opt\"),\"Opt\",\"N/A\"))","v":"N/A"}]
["Data should be provided for N1 variants only."]
["Std","Standard fitment on all N1 variants of the model range.  It is not possible to buy an N1 variant without this item of safety equipment"]
["Opt1",{"$f":"\"The equipment is not standard on all variants but is available at least as an option on all N1 variants of the \"&A1&\" model range\"","v":"The equipment is not standard on all variants but is available at least as an option on all N1 variants of the   model range"}]
["Opt2",{"$f":"\"The equipment is offered as an option on at least one N1 variant of the \"&A1&\" model range\"","v":"The equipment is offered as an option on at least one N1 variant of the   model range"}]
["N/A","This item of safety equipment is not available, either as standard or as an option, on any N1 variant in the model range"]
[]
[]
[null,null,"AT"]
[null,null,"BE"]
[null,null,"BG"]
[null,null,"HR"]
[null,null,"CY"]
[null,null,"CZ"]
[null,null,"DK"]
[null,null,"EE"]
[null,null,"FI"]
[null,null,"FR"]
[null,null,"DE"]
[null,null,"GR"]
[null,null,"HU"]
[null,null,"IE"]
[null,null,"IT"]
[null,null,"LV"]
[null,null,"LT"]
[null,null,"LU"]
[null,null,"MT"]
[null,null,"NL"]
[null,null,"PL"]
[null,null,"PT"]
[null,null,"RO"]
[null,null,"SK"]
[null,null,"SI"]
[null,null,"ES"]
[null,null,"SE"]
[null,null,"GB"]

{"sheet":"AEB Pedestrian","index":4,"n_rows":126,"n_cols":8,"rows_kept":126,"cut":false,"hidden":false,"merged":[[1,1,2,2],[1,3,2,4],[1,5,2,6],[3,1,3,2],[4,3,4,6],[15,1,15,2],[15,3,15,4],[15,5,15,6],[10,3,10,6],[11,3,11,6],[12,3,12,6],[5,3,5,4],[5,5,5,6],[6,3,6,4],[6,5,6,6],[7,3,7,4],[7,5,7,6],[8,3,8,4],[8,5,8,6],[17,3,17,4],[17,5,17,6],[18,5,18,6],[19,5,19,6],[20,5,20,6],[21,5,21,6],[13,3,13,4],[13,5,13,6],[14,3,14,4],[14,5,14,6],[28,5,28,6],[29,1,29,2],[29,3,29,4],[29,5,29,6],[31,3,31,4],[31,5,31,6],[22,5,22,6],[23,5,23,6],[24,5,24,6],[25,5,25,6],[26,5,26,6],[27,5,27,6],[59,3,59,4],[59,5,59,6],[60,5,60,6],[61,5,61,6],[62,5,62,6],[63,5,63,6],[43,1,43,2],[43,3,43,4],[43,5,43,6],[45,3,45,4],[45,5,45,6],[57,1,57,2],[57,3,57,4],[57,5,57,6],[70,5,70,6],[71,1,71,2],[71,3,71,4],[71,5,71,6],[73,5,73,6],[74,5,74,6],[64,5,64,6],[65,5,65,6],[66,5,66,6],[67,5,67,6],[68,5,68,6],[69,5,69,6],[80,5,80,6],[81,5,81,6],[82,5,82,6],[83,5,83,6],[84,5,84,6],[85,5,85,6],[75,5,75,6],[76,5,76,6],[77,1,77,2],[77,3,77,4],[77,5,77,6],[79,5,79,6],[100,1,100,2],[100,3,100,4],[100,5,100,6],[110,1,110,2],[110,3,110,4],[110,5,110,6],[86,5,86,6],[87,5,87,6],[88,1,88,2],[88,3,88,4],[88,5,88,6],[90,3,90,4],[90,5,90,6],[115,3,115,4],[115,5,115,6],[116,3,116,4],[116,5,116,6],[117,3,117,4],[117,5,117,6],[112,1,112,2],[112,3,112,4],[112,5,112,6],[113,3,113,4],[113,5,113,6],[114,3,114,4],[114,5,114,6],[122,3,122,6],[123,3,123,6],[125,1,125,2],[125,3,125,6],[118,3,118,4],[118,5,118,6],[119,3,119,4],[119,5,119,6],[121,1,121,2],[121,3,121,6]]}
[3]
[null,"AEB Pedestrian",null,"Daytime",null,"Night-time"]
[]
[null,null,null,"Vimpact","Points","Vimpact","Points"]
[null,"SYSTEM DETAILS"]
[null,null,"System Name",null,null,null,null,{"$f":"D6","v":0}]
[null,null,"Functionality"]
[null,null,"Speed range (km/h) - Minimum",null,null,null,null,{"$f":"D8","v":0}]
[null,null,"Maximum",null,null,null,null,{"$f":"D9","v":0}]
[]
[null,"PREREQUISITES"]
[]
[null,null,"Default ON"]
[null,null,"Can identify slower walking pedestrian (VPNA-75)"]
[null,null,"System switches off below 80 km/h"]
[null,"PREREQUISITES",null,{"$f":"IF(AND(D13=\"YES\",D14=\"PASS\",D15=\"NO\"),\"PASS\",\"FAIL\")","v":"FAIL"},null,{"$f":"IF(AND(D13=\"YES\",F14=\"PASS\",F15=\"NO\"),\"PASS\",\"FAIL\")","v":"FAIL"}]
[]
[null,"VPFA-50"]
[null,1,10,null,{"$f":"IF(D19=\"\",0,ROUND(($C19-IF(D19>$C19,$C19,D19))/$C19*1,Round))","v":0}]
[null,2,15,null,{"$f":"IF(D20=\"\",0,ROUND(($C20-IF(D20>$C20,$C20,D20))/$C20*1,Round))","v":0}]
[null,1,20,null,{"$f":"IF(D21=\"\",0,ROUND(($C21-IF(D21>$C21,$C21,D21))/$C21*1,Round))","v":0}]
[null,2,25,null,{"$f":"IF(D22=\"\",0,ROUND(($C22-IF(D22>$C22,$C22,D22))/$C22*1,Round))","v":0}]
[null,2,30,null,{"$f":"IF(D23=\"\",0,ROUND(($C23-IF(D23>$C23,$C23,D23))/$C23*2,Round))","v":0}]
[null,3,35,null,{"$f":"IF(D24=\"\",0,ROUND(($C24-IF(D24>$C24,$C24,D24))/$C24*3,Round))","v":0}]
[null,3,40,null,{"$f":"IF(D25=\"\",0,ROUND(($C25-IF(D25>$C25,$C25,D25))/$C25*3,Round))","v":0}]
[null,null,45,null,{"$f":"IF(D26=\"\",0,IF(D26<=(C26-20),3,0))","v":0}]
[null,null,50,null,{"$f":"IF(D27=\"\",0,IF(D27<=(C27-20),2,0))","v":0}]
[null,null,55,null,{"$f":"IF(D28=\"\",0,IF(D28<=(C28-20),2,0))","v":0}]
[null,null,60,null,{"$f":"IF(D29=\"\",0,IF(D29<=(C29-20),1,0))","v":0}]
[null,"VPFA-50 RESULT",null,{"$f":"IF((COUNTBLANK(D19:D25)+COUNTBLANK(D26:D29))>0,0,SUM(E19:E25,E26:E29))","v":0}]
[]
[null,"VPNA-25"]
[null,1,10,null,{"$f":"IF(D33=\"\",0,ROUND(($C33-IF(D33>$C33,$C33,D33))/$C33*1,Round))","v":0},null,{"$f":"IF(F33=\"\",0,ROUND(($C33-IF(F33>$C33,$C33,F33))/$C33*1,Round))","v":0}]
[null,2,15,null,{"$f":"IF(D34=\"\",0,ROUND(($C34-IF(D34>$C34,$C34,D34))/$C34*1,Round))","v":0},null,{"$f":"IF(F34=\"\",0,ROUND(($C34-IF(F34>$C34,$C34,F34))/$C34*1,Round))","v":0}]
[null,1,20,null,{"$f":"IF(D35=\"\",0,ROUND(($C35-IF(D35>$C35,$C35,D35))/$C35*1,Round))","v":0},null,{"$f":"IF(F35=\"\",0,ROUND(($C35-IF(F35>$C35,$C35,F35))/$C35*1,Round))","v":0}]
[null,2,25,null,{"$f":"IF(D36=\"\",0,ROUND(($C36-IF(D36>$C36,$C36,D36))/$C36*1,Round))","v":0},null,{"$f":"IF(F36=\"\",0,ROUND(($C36-IF(F36>$C36,$C36,F36))/$C36*1,Round))","v":0}]
[null,2,30,null,{"$f":"IF(D37=\"\",0,ROUND(($C37-IF(D37>$C37,$C37,D37))/$C37*2,Round))","v":0},null,{"$f":"IF(F37=\"\",0,ROUND(($C37-IF(F37>$C37,$C37,F37))/$C37*1,Round))","v":0}]
[null,3,35,null,{"$f":"IF(D38=\"\",0,ROUND(($C38-IF(D38>$C38,$C38,D38))/$C38*3,Round))","v":0},null,{"$f":"IF(F38=\"\",0,ROUND(($C38-IF(F38>$C38,$C38,F38))/$C38*2,Round))","v":0}]
[null,3,40,null,{"$f":"IF(D39=\"\",0,ROUND(($C39-IF(D39>$C39,$C39,D39))/$C39*3,Round))","v":0},null,{"$f":"IF(F39=\"\",0,ROUND(($C39-IF(F39>$C39,$C39,F39))/$C39*2,Round))","v":0}]
[null,null,45,null,{"$f":"IF(D40=\"\",0,IF(D40<=(C40-20),3,0))","v":0},null,{"$f":"IF(F40=\"\",0,IF(F40<=(C40-20),3,0))","v":0}]
[null,null,50,null,{"$f":"IF(D41=\"\",0,IF(D41<=(C41-20),2,0))","v":0},null,{"$f":"IF(F41=\"\",0,IF(F41<=(C41-20),3,0))","v":0}]
[null,null,55,null,{"$f":"IF(D42=\"\",0,IF(D42<=(C42-20),2,0))","v":0},null,{"$f":"IF(F42=\"\",0,IF(F42<=(C42-20),3,0))","v":0}]
[null,null,60,null,{"$f":"IF(D43=\"\",0,IF(D43<=(C43-20),1,0))","v":0},null,{"$f":"IF(F43=\"\",0,IF(F43<=(C43-20),2,0))","v":0}]
[null,"VPNA-25 RESULT",null,{"$f":"IF((COUNTBLANK(D33:D39)+COUNTBLANK(D40:D43))>0,0,SUM(E33:E39,E40:E43))","v":0},null,{"$f":"IF((COUNTBLANK(F33:F39)+COUNTBLANK(F40:F43))>0,0,SUM(G33:G39,G40:G43))","v":0}]
[]
[null,"VPNA-75"]
[null,1,10,null,{"$f":"IF(D47=\"\",0,ROUND(($C47-IF(D47>$C47,$C47,D47))/$C47*1,Round))","v":0},null,{"$f":"IF(F47=\"\",0,ROUND(($C47-IF(F47>$C47,$C47,F47))/$C47*1,Round))","v":0}]
[null,1,15,null,{"$f":"IF(D48=\"\",0,ROUND(($C48-IF(D48>$C48,$C48,D48))/$C48*1,Round))","v":0},null,{"$f":"IF(F48=\"\",0,ROUND(($C48-IF(F48>$C48,$C48,F48))/$C48*1,Round))","v":0}]
[null,2,20,null,{"$f":"IF(D49=\"\",0,ROUND(($C49-IF(D49>$C49,$C49,D49))/$C49*1,Round))","v":0},null,{"$f":"IF(F49=\"\",0,ROUND(($C49-IF(F49>$C49,$C49,F49))/$C49*1,Round))","v":0}]
[null,2,25,null,{"$f":"IF(D50=\"\",0,ROUND(($C50-IF(D50>$C50,$C50,D50))/$C50*1,Round))","v":0},null,{"$f":"IF(F50=\"\",0,ROUND(($C50-IF(F50>$C50,$C50,F50))/$C50*1,Round))","v":0}]
[null,2,30,null,{"$f":"IF(D51=\"\",0,ROUND(($C51-IF(D51>$C51,$C51,D51))/$C51*2,Round))","v":0},null,{"$f":"IF(F51=\"\",0,ROUND(($C51-IF(F51>$C51,$C51,F51))/$C51*1,Round))","v":0}]
[null,3,35,null,{"$f":"IF(D52=\"\",0,ROUND(($C52-IF(D52>$C52,$C52,D52))/$C52*3,Round))","v":0},null,{"$f":"IF(F52=\"\",0,ROUND(($C52-IF(F52>$C52,$C52,F52))/$C52*2,Round))","v":0}]
[null,3,40,null,{"$f":"IF(D53=\"\",0,ROUND(($C53-IF(D53>$C53,$C53,D53))/$C53*3,Round))","v":0},null,{"$f":"IF(F53=\"\",0,ROUND(($C53-IF(F53>$C53,$C53,F53))/$C53*2,Round))","v":0}]
[null,null,45,null,{"$f":"IF(D54=\"\",0,IF(D54<=(C54-20),3,0))","v":0},null,{"$f":"IF(F54=\"\",0,IF(F54<=(C54-20),3,0))","v":0}]
[null,null,50,null,{"$f":"IF(D55=\"\",0,IF(D55<=(C55-20),2,0))","v":0},null,{"$f":"IF(F55=\"\",0,IF(F55<=(C55-20),3,0))","v":0}]
[null,null,55,null,{"$f":"IF(D56=\"\",0,IF(D56<=(C56-20),2,0))","v":0},null,{"$f":"IF(F56=\"\",0,IF(F56<=(C56-20),3,0))","v":0}]
[null,null,60,null,{"$f":"IF(D57=\"\",0,IF(D57<=(C57-20),1,0))","v":0},null,{"$f":"IF(F57=\"\",0,IF(F57<=(C57-20),2,0))","v":0}]
[null,"VPNA-75 RESULT",null,{"$f":"IF((COUNTBLANK(D47:D53)+COUNTBLANK(D54:D57))>0,0,SUM(E47:E53,E54:E57))","v":0},null,{"$f":"IF((COUNTBLANK(F47:F53)+COUNTBLANK(F54:F57))>0,0,SUM(G47:G53,G54:G57))","v":0}]
[]
[null,"VPNC-50"]
[null,1,10,null,{"$f":"IF(D61=\"\",0,ROUND(($C61-IF(D61>$C61,$C61,D61))/$C61*1,Round))","v":0}]
[null,2,15,null,{"$f":"IF(D62=\"\",0,ROUND(($C62-IF(D62>$C62,$C62,D62))/$C62*1,Round))","v":0}]
[null,2,20,null,{"$f":"IF(D63=\"\",0,ROUND(($C63-IF(D63>$C63,$C63,D63))/$C63*1,Round))","v":0}]
[null,2,25,null,{"$f":"IF(D64=\"\",0,ROUND(($C64-IF(D64>$C64,$C64,D64))/$C64*1,Round))","v":0}]
[null,2,30,null,{"$f":"IF(D65=\"\",0,ROUND(($C65-IF(D65>$C65,$C65,D65))/$C65*2,Round))","v":0}]
[null,3,35,null,{"$f":"IF(D66=\"\",0,ROUND(($C66-IF(D66>$C66,$C66,D66))/$C66*3,Round))","v":0}]
[null,3,40,null,{"$f":"IF(D67=\"\",0,ROUND(($C67-IF(D67>$C67,$C67,D67))/$C67*3,Round))","v":0}]
[null,null,45,null,{"$f":"IF(D68=\"\",0,IF(D68<=(C68-20),3,0))","v":0}]
[null,null,50,null,{"$f":"IF(D69=\"\",0,IF(D69<=(C69-20),2,0))","v":0}]
[null,null,55,null,{"$f":"IF(D70=\"\",0,IF(D70<=(C70-20),2,0))","v":0}]
[null,null,60,null,{"$f":"IF(D71=\"\",0,IF(D71<=(C71-20),1,0))","v":0}]
[null,"VPNC-50 RESULT",null,{"$f":"IF((COUNTBLANK(D61:D67)+COUNTBLANK(D68:D71))>0,0,SUM(E61:E67,E68:E71))","v":0}]
[]
[null,"VPTA-50",null,"Farside turn","Nearside turn"]
[null,1,10]
[null,2,15]
[null,2,20]
[null,"VPTA-50 RESULT",null,{"$f":"IF((COUNTBLANK(D75:D77)+COUNTBLANK(E75)>0),0,COUNTIF(D75:D77,\"=0\")+COUNTIF(E75,\"=0\"))","v":0}]
[]
[null,"VPRA",null,"Stationary","Moving"]
[null,null,"4 km/h reverse"]
[null,1,"hitpoint @ 25%"]
[null,2,"hitpoint @ 50%"]
[null,2,"hitpoint @ 75%"]
[null,null,"8 km/h reverse"]
[null,1,"hitpoint @ 25%"]
[null,2,"hitpoint @ 50%"]
[null,2,"hitpoint @ 75%"]
[null,"VPRA RESULT",null,{"$f":"IF(COUNTIF(D82:D84,\"=0\")=3,1,0)+IF(COUNTIF(E83,\"=0\")=1,1,0)+IF(COUNTIF(D86:D88,\"=0\")=3,1,0)+IF(COUNTIF(E87,\"=0\")=1,1,0)","v":0}]
[]
[null,"VPLA-50"]
[null,1,20,null,{"$f":"IF(D92=\"\",0,ROUND((($C92-5)-(IF(D92<=5,5,IF(D92>$C92,$C92,D92))-5))/($C92-5)*$B92,Round))","v":0},null,{"$f":"IF(F92=\"\",0,ROUND((($C92-5)-(IF(F92<=5,5,IF(F92>$C92,$C92,F92))-5))/($C92-5)*$B92,Round))","v":0}]
[null,1,25,null,{"$f":"IF(D93=\"\",0,ROUND((($C93-5)-(IF(D93<=5,5,IF(D93>$C93,$C93,D93))-5))/($C93-5)*$B93,Round))","v":0},null,{"$f":"IF(F93=\"\",0,ROUND((($C93-5)-(IF(F93<=5,5,IF(F93>$C93,$C93,F93))-5))/($C93-5)*$B93,Round))","v":0}]
[null,1,30,null,{"$f":"IF(D94=\"\",0,ROUND((($C94-5)-(IF(D94<=5,5,IF(D94>$C94,$C94,D94))-5))/($C94-5)*$B94,Round))","v":0},null,{"$f":"IF(F94=\"\",0,ROUND((($C94-5)-(IF(F94<=5,5,IF(F94>$C94,$C94,F94))-5))/($C94-5)*$B94,Round))","v":0}]
[null,2,35,null,{"$f":"IF(D95=\"\",0,ROUND((($C95-5)-(IF(D95<=5,5,IF(D95>$C95,$C95,D95))-5))/($C95-5)*$B95,Round))","v":0},null,{"$f":"IF(F95=\"\",0,ROUND((($C95-5)-(IF(F95<=5,5,IF(F95>$C95,$C95,F95))-5))/($C95-5)*$B95,Round))","v":0}]
[null,2,40,null,{"$f":"IF(D96=\"\",0,ROUND((($C96-5)-(IF(D96<=5,5,IF(D96>$C96,$C96,D96))-5))/($C96-5)*$B96,Round))","v":0},null,{"$f":"IF(F96=\"\",0,ROUND((($C96-5)-(IF(F96<=5,5,IF(F96>$C96,$C96,F96))-5))/($C96-5)*$B96,Round))","v":0}]
[null,3,45,null,{"$f":"IF(D97=\"\",0,IF(D97<=(C97-20),$B97,0))","v":0},null,{"$f":"IF(F97=\"\",0,IF(F97<=($C97-20),$B97,0))","v":0}]
[null,3,50,null,{"$f":"IF(D98=\"\",0,IF(D98<=(C98-20),$B98,0))","v":0},null,{"$f":"IF(F98=\"\",0,IF(F98<=($C98-20),$B98,0))","v":0}]
[null,3,55,null,{"$f":"IF(D99=\"\",0,IF(D99<=(C99-20),$B99,0))","v":0},null,{"$f":"IF(F99=\"\",0,IF(F99<=($C99-20),$B99,0))","v":0}]
[null,2,60,null,{"$f":"IF(D100=\"\",0,IF(D100<=(C100-20),$B100,0))","v":0},null,{"$f":"IF(F100=\"\",0,IF(F100<=($C100-20),$B100,0))","v":0}]
[null,"VPLA-50 RESULT",null,{"$f":"IF((COUNTBLANK(D92:D96)+COUNTBLANK(D97:D100))>0,0,SUM(E92:E96,E97:E100))","v":0},null,{"$f":"IF((COUNTBLANK(F92:F96)+COUNTBLANK(F97:F100))>0,0,SUM(G92:G96,G97:G100))","v":0}]
[]
[null,"VPLA-25",null,"TTCFCW","Points","TTCFCW","Points"]
[null,3,50,null,{"$f":"IF(D104=\"\",0,IF(D104>=1.7,$B104,0))","v":0},null,{"$f":"IF(F104=\"\",0,IF(F104>=1.7,$B104,0))","v":0}]
[null,3,55,null,0,null,0]
[null,2,60,null,0,null,0]
[null,1,65,null,0,null,0]
[null,1,70,null,0,null,0]
[null,1,75,null,0,null,0]
[null,1,80,null,0,null,0]
[null,"VPLA-25 RESULT",null,{"$f":"IF((COUNTBLANK(D104:D108)+COUNTBLANK(D109:D110))>0,0,SUM(E104:E108,E109:E110))","v":0},null,{"$f":"IF((COUNTBLANK(F104:F108)+COUNTBLANK(F109:F110))>0,0,SUM(G104:G108,G109:G110))","v":0}]
[]
[null,"SUMMARY",null,"DAYTIME",null,"NIGHT-TIME"]
[null,null,"VPFA-50",{"$f":"ROUND(D30/20,Round)","v":0}]
[null,null,"VPNA-25",{"$f":"ROUND(D44/20,Round)","v":0},null,{"$f":"ROUND(F44/20,Round)","v":0}]
[null,null,"VPNA-75",{"$f":"ROUND(D58/20,Round)","v":0},null,{"$f":"ROUND(F58/20,Round)","v":0}]
[null,null,"VPNC-50",{"$f":"ROUND(D72/20,Round)","v":0}]
[null,null,"VPLA",{"$f":"ROUND((D101+D111)/30,Round)","v":0},null,{"$f":"ROUND((F101+F111)/30,Round)","v":0}]
[null,null,"VPTA",{"$f":"ROUND(D78/4,Round)","v":0}]
[null,null,"VPRA",{"$f":"ROUND(D89/4,Round)","v":0}]
[]
[null,"TOTAL"]
[null,null,"Daytime",{"$f":"IF(D16=\"FAIL\",0,ROUND(D114*0.5+D115*0.25+D116*0.25+D117*1+D118*1+D119*1+D120*2,Round))","v":0}]
[null,null,"Night-time",{"$f":"IF(F16=\"FAIL\",0,ROUND(F115*1+F116*1+F118*1,Round))","v":0}]
[]
[null,"TOTAL AEB Pedestrian",null,{"$f":"ROUND(SUM(D123:G124),Round)","v":0}]

{"sheet":"AEB Cyclist","index":5,"n_rows":88,"n_cols":7,"rows_kept":88,"cut":false,"hidden":false,"merged":[[1,1,3,2],[42,1,42,2],[42,3,42,4],[67,3,67,4],[77,1,77,2],[58,3,58,4],[30,3,30,4],[67,1,67,2],[14,1,14,2],[14,3,14,4],[11,3,11,4],[77,3,77,4],[1,3,2,4],[12,3,12,4],[13,3,13,4],[10,3,10,4],[85,1,85,2],[85,3,85,4],[84,3,84,4],[83,3,83,4],[79,1,79,2],[79,3,79,4],[81,3,81,4],[80,3,80,4],[82,3,82,4],[4,3,4,4],[5,3,5,4],[6,3,6,4],[7,3,7,4],[8,3,8,4],[16,3,16,4],[28,1,28,2],[28,3,28,4],[44,3,44,4],[56,1,56,2],[56,3,56,4]]}
[3]
[null,"AEB Cyclist"]
[]
[null,null,null,"Vimpact","Points"]
[null,"SYSTEM DETAILS"]
[null,null,"System Name"]
[null,null,"Functionality"]
[null,null,"Speed range (km/h) - Minimum"]
[null,null,"Maximum"]
[]
[null,"PREREQUISITES"]
[]
[null,null,"Default ON"]
[null,null,"System switches off below 80 km/h"]
[null,"PREREQUISITES",null,{"$f":"IF(AND(D13=\"YES\",D14=\"NO\"),\"PASS\",\"FAIL\")","v":"FAIL"}]
[]
[null,"VBFA"]
[null,null,10,null,{"$f":"IF(D18=\"\",0,ROUND(($C18-IF(D18>$C18,$C18,D18))/$C18*1,Round))","v":0}]
[null,null,15,null,0]
[null,null,20,null,0]
[null,null,25,null,0]
[null,null,30,null,0]
[null,null,35,null,0]
[null,null,40,null,0]
[null,null,45,null,{"$f":"IF(D25=\"\",0,IF(D25<=(C25-20),1,0))","v":0}]
[null,null,50,null,{"$f":"IF(D26=\"\",0,IF(D26<=(C26-20),1,0))","v":0}]
[null,null,55,null,{"$f":"IF(D27=\"\",0,IF(D27<=(C27-20),1,0))","v":0}]
[null,null,60,null,{"$f":"IF(D28=\"\",0,IF(D28<=(C28-20),1,0))","v":0}]
[null,"VBFA RESULT",null,{"$f":"IF((COUNTBLANK(D18:D24)+COUNTBLANK(D25:D28))>0,0,SUM(E18:E24,E25:E28))","v":0}]
[]
[null,"VBNA"]
[null,null,10,null,{"$f":"IF(D32=\"\",0,ROUND(($C32-IF(D32>$C32,$C32,D32))/$C32*1,Round))","v":0}]
[null,null,15,null,0]
[null,null,20,null,{"$f":"IF(D34=\"\",0,ROUND(($C34-IF(D34>$C34,$C34,D34))/$C34*1,Round))","v":0}]
[null,null,25,null,{"$f":"IF(D35=\"\",0,ROUND(($C35-IF(D35>$C35,$C35,D35))/$C35*1,Round))","v":0}]
[null,null,30,null,{"$f":"IF(D36=\"\",0,ROUND(($C36-IF(D36>$C36,$C36,D36))/$C36*1,Round))","v":0}]
[null,null,35,null,{"$f":"IF(D37=\"\",0,ROUND(($C37-IF(D37>$C37,$C37,D37))/$C37*1,Round))","v":0}]
[null,null,40,null,{"$f":"IF(D38=\"\",0,ROUND(($C38-IF(D38>$C38,$C38,D38))/$C38*1,Round))","v":0}]
[null,null,45,null,{"$f":"IF(D39=\"\",0,IF(D39<=(C39-20),1,0))","v":0}]
[null,null,50,null,{"$f":"IF(D40=\"\",0,IF(D40<=(C40-20),1,0))","v":0}]
[null,null,55,null,{"$f":"IF(D41=\"\",0,IF(D41<=(C41-20),1,0))","v":0}]
[null,null,60,null,{"$f":"IF(D42=\"\",0,IF(D42<=(C42-20),1,0))","v":0}]
[null,"VBNA-50 RESULT",null,{"$f":"IF((COUNTBLANK(D32:D38)+COUNTBLANK(D39:D42))>0,0,SUM(E32:E38,E39:E42))","v":0}]
[]
[null,"VBNAO"]
[null,null,10,null,{"$f":"IF(D46=\"\",0,ROUND(($C46-IF(D46>$C46,$C46,D46))/$C46*1,Round))","v":0}]
[null,null,15,null,0]
[null,null,20,null,0]
[null,null,25,null,0]
[null,null,30,null,0]
[null,null,35,null,0]
[null,null,40,null,0]
[null,null,45,null,{"$f":"IF(D53=\"\",0,IF(D53<=(C53-20),1,0))","v":0}]
[null,null,50,null,{"$f":"IF(D54=\"\",0,IF(D54<=(C54-20),1,0))","v":0}]
[null,null,55,null,{"$f":"IF(D55=\"\",0,IF(D55<=(C55-20),1,0))","v":0}]
[null,null,60,null,{"$f":"IF(D56=\"\",0,IF(D56<=(C56-20),1,0))","v":0}]
[null,"VBNAO RESULT",null,{"$f":"IF((COUNTBLANK(D46:D52)+COUNTBLANK(D53:D56))>0,0,SUM(E46:E52,E53:E56))","v":0}]
[]
[null,"VBLA-50"]
[null,1,25,null,{"$f":"IF(D60=\"\",0,ROUND((($C60-15)-(IF(D60<=15,15,IF(D60>$C60,$C60,D60))-15))/($C60-15)*$B60,Round))","v":0}]
[null,1,30,null,{"$f":"IF(D61=\"\",0,ROUND((($C61-15)-(IF(D61<=15,15,IF(D61>$C61,$C61,D61))-15))/($C61-15)*$B61,Round))","v":0}]
[null,2,35,null,{"$f":"IF(D62=\"\",0,ROUND((($C62-15)-(IF(D62<=15,15,IF(D62>$C62,$C62,D62))-15))/($C62-15)*$B62,Round))","v":0}]
[null,2,40,null,{"$f":"IF(D63=\"\",0,ROUND((($C63-15)-(IF(D63<=15,15,IF(D63>$C63,$C63,D63))-15))/($C63-15)*$B63,Round))","v":0}]
[null,3,45,null,{"$f":"IF(D64=\"\",0,IF(D64<=(C64-20),$B64,0))","v":0}]
[null,3,50,null,{"$f":"IF(D65=\"\",0,IF(D65<=(C65-20),$B65,0))","v":0}]
[null,3,55,null,0]
[null,1,60,null,0]
[null,"VBLA-50 RESULT",null,{"$f":"SUM(E60:E63,E64:E67)","v":0}]
[]
[null,"VBLA-25",null,"TTCFCW","Points"]
[null,3,50,null,{"$f":"IF(D71=\"\",0,IF(D71>=1.7,$B71,0))","v":0}]
[null,3,55,null,{"$f":"IF(D72=\"\",0,IF(D72>=1.7,$B72,0))","v":0}]
[null,1,60,null,0]
[null,1,65,null,0]
[null,1,70,null,0]
[null,1,75,null,0]
[null,1,80,null,0]
[null,"VBLA-25 RESULT",null,{"$f":"SUM(E71:E75,E76:E77)","v":0}]
[]
[null,"SUMMARY"]
[null,null,"VBFA",{"$f":"ROUND(D29/11,Round)","v":0}]
[null,null,"VBNA-50",{"$f":"ROUND(D43/11,Round)","v":0}]
[null,null,"VBNAO",{"$f":"ROUND(D57/11,Round)","v":0}]
[null,null,"VBLA",{"$f":"ROUND((D68+D78)/27,Round)","v":0}]
[]
[null,"TOTAL AEB Cyclist",null,{"$f":"IF(D15=\"FAIL\",0,ROUND(D81*3+D82*1.5+D83*1.5+D84*3,Round))","v":0}]
[]
[null,null,null,null,null,null," "]

{"sheet":"AEB Car-to-Car","index":6,"n_rows":112,"n_cols":14,"rows_kept":112,"cut":false,"hidden":false,"merged":[[72,3,72,4],[73,3,73,4],[74,3,74,4],[75,3,75,4],[109,3,109,12],[111,1,111,2],[111,3,111,12],[103,3,103,12],[105,1,105,2],[105,3,105,12],[106,3,106,12],[107,3,107,12],[100,3,100,7],[100,8,100,12],[101,3,101,7],[101,8,101,12],[76,3,76,4],[77,3,77,4],[78,3,78,4],[79,3,79,4],[80,1,80,2],[80,3,80,4],[80,8,80,9],[82,1,82,2],[50,3,50,4],[50,5,50,7],[50,8,50,9],[53,3,53,7],[53,8,53,12],[50,10,50,12],[51,3,51,4],[51,5,51,7],[51,8,51,9],[51,10,51,12],[54,3,54,4],[54,5,54,7],[54,8,54,9],[54,10,54,12],[55,3,55,4],[55,5,55,7],[55,8,55,9],[55,10,55,12],[52,3,52,4],[52,5,52,7],[52,8,52,9],[52,10,52,12],[3,1,3,2],[3,3,3,7],[3,8,3,12],[4,3,4,7],[4,8,4,12],[5,3,5,7],[5,8,5,12],[1,1,2,2],[14,1,14,2],[14,3,14,12],[1,3,1,7],[1,8,1,12],[2,3,2,7],[2,8,2,12],[10,3,10,7],[10,8,10,12],[11,3,11,7],[11,8,11,12],[6,3,6,7],[6,8,6,12],[7,3,7,7],[7,8,7,12],[8,3,8,7],[8,8,8,12],[12,3,12,7],[12,8,12,12],[26,3,26,7],[27,3,27,7],[28,3,28,7],[29,3,29,7],[30,3,30,7],[31,3,31,7],[13,3,13,7],[13,8,13,12],[18,8,18,12],[19,8,19,12],[20,8,20,12],[16,1,16,2],[17,1,31,1],[17,8,17,12],[46,1,46,2],[46,3,46,7],[46,8,46,12],[48,1,48,12],[49,1,49,2],[49,3,49,4],[49,5,49,7],[49,8,49,9],[49,10,49,12],[32,1,32,2],[32,3,32,7],[32,8,32,12],[34,1,34,2],[35,1,45,1],[35,8,35,12],[36,8,36,12],[37,8,37,12],[38,8,38,12],[56,1,56,2],[56,3,56,7],[65,3,65,4],[66,3,66,4],[67,3,67,4],[68,3,68,4],[69,3,69,4],[70,3,70,4],[71,3,71,4],[59,3,59,4],[60,3,60,4],[61,3,61,4],[62,3,62,4],[63,3,63,4],[64,3,64,4],[58,1,58,12],[59,1,59,2],[56,8,56,12],[82,3,82,7],[82,8,82,12],[84,1,84,12],[85,1,85,2],[85,3,85,4],[85,5,85,7],[85,8,85,12],[86,3,86,4],[86,8,86,12],[87,8,87,12],[88,8,88,12],[89,8,89,12],[90,1,90,2],[90,3,90,7],[90,8,90,12],[102,3,102,7],[102,8,102,12],[108,3,108,12],[99,3,99,7],[99,8,99,12],[96,1,96,2],[96,3,96,12],[98,1,98,2],[98,3,98,7],[98,8,98,12],[92,3,92,12],[93,3,93,12],[94,3,94,4],[94,5,94,12],[95,3,95,4],[95,5,95,12]]}
[3]
[null,"AEB CAR-TO-CAR",null,"AEB",null,null,null,null,"FCW"]
[]
[null,"SYSTEM DETAILS"]
[null,null,"System name"]
[null,null,"AEB and/or FCW"]
[null,null,"Functionality"]
[null,null,"Speed range (km/h) - Minimum"]
[null,null,"Maximum"]
[]
[null,"PREREQUISITES"]
[null,null,"Default ON after every journey"]
[null,null,"Loud and Clear FCW"]
[null,null,"System switches off below 130 km/h"]
[null,"PREREQUISITES",null,{"$f":"IF(AND(D12=\"PASS\",D13=\"PASS\",D14=\"NO\",I12=\"PASS\",I13=\"PASS\",I14=\"NO\"),\"PASS\",\"FAIL\")","v":"FAIL"}]
[]
[null,"VCRs",null,-0.5,-0.75,1,0.75,0.5,-0.5,-0.75,1,0.75,0.5]
[null,"Test Speed",10,null,null,null,null,null,null,null,null,null,null,{"$f":"IF(OR(CCRs_AEB_GR=\"Yellow\",CCRs_AEB_GR=\"Orange\",CCRs_AEB_GR=\"BROWN\"),\"VCRs AEB ERROR - Incorrect Colour where only Green, Red allowed\",\"\")","v":""}]
[null,null,15]
[null,null,20]
[null,null,25,null,null,null,null,null,null,null,null,null,null,{"$f":"IF(OR(CCRs_AEB_GOR=\"Yellow\",CCRs_AEB_GOR=\"BROWN\"),\"VCRs AEB ERROR - Incorrect Colour where only Green, Orange, Red allowed\",\"\")","v":""}]
[null,null,30,null,null,null,null,null,null,null,null,null,null,{"$f":"IF(OR(CCRs_AEB_GYOR=\"BROWN\"),\"VCRs AEB ERROR - Incorrect Colour where only Green, Yellow, Orange, Red allowed\",\"\")","v":""}]
[null,null,35,null,null,null,null,null,null,null,null,null,null,{"$f":"IF(OR(CCRs_FCW_GYOR=\"BROWN\"),\"VCRs FCW ERROR - Incorrect Colour where only Green, Yellow, Orange, Red allowed\",\"\")","v":""}]
[null,null,40]
[null,null,45]
[null,null,50]
[null,null,55]
[null,null,60]
[null,null,65]
[null,null,70]
[null,null,75]
[null,null,80]
[null,"Predicted VCRs score",null,0,null,null,null,null,0]
[]
[null,"VCRm",null,-0.5,-0.75,1,0.75,0.5,-0.5,-0.75,1,0.75,0.5]
[null,"Test Speed",30,null,null,null,null,null,null,null,null,null,null,{"$f":"IF(OR(CCRm_AEB_GR=\"Yellow\",CCRm_AEB_GR=\"Orange\",CCRm_AEB_GR=\"BROWN\"),\"VCRm AEB ERROR - Incorrect Colour where only Green, Red allowed\",\"\")","v":""}]
[null,null,35]
[null,null,40,null,null,null,null,null,null,null,null,null,null,{"$f":"IF(OR(CCRm_AEB_GOR=\"Yellow\",CCRm_AEB_GOR=\"BROWN\"),\"VCRm AEB ERROR - Incorrect Colour where only Green, Orange, Red allowed\",\"\")","v":""}]
[null,null,45]
[null,null,50,null,null,null,null,null,null,null,null,null,null,{"$f":"IF(OR(CCRm_AEB_GYOR=\"BROWN\"),\"VCRm AEB ERROR - Incorrect Colour where only Green, Yellow, Orange, Red allowed\",\"\")","v":""}]
[null,null,55,null,null,null,null,null,null,null,null,null,null,{"$f":"IF(OR(CCRm_FCW_GYOR=\"BROWN\"),\"VCRm FCW ERROR - Incorrect Colour where only Green, Yellow, Orange, Red allowed\",\"\")","v":""}]
[null,null,60]
[null,null,65]
[null,null,70]
[null,null,75]
[null,null,80]
[null,"Predicted VCRm score",null,0,null,null,null,null,0]
[]
[null,"VCRb"]
[null,"Testpoints VCRb",null,"Impact Speed",null,"Points",null,null,"Impact Speed",null,"Points"]
[null,null,"12m headway"]
[null,null,"-2m/s² EVT acceleration",null,null,{"$f":"IF(D52=\"Green\",1,IF(D52=\"Yellow\",0.75,IF(D52=\"Orange\",0.5,IF(D52=\"Brown\",0.25,0))))","v":0},null,null,null,null,{"$f":"IF(I52=\"Green\",1,IF(I52=\"Yellow\",0.75,IF(I52=\"Orange\",0.5,IF(I52=\"Brown\",0.25,0))))","v":0}]
[null,null,"-6m/s² EVT acceleration",null,null,{"$f":"IF(D53=\"Green\",1,IF(D53=\"Yellow\",0.75,IF(D53=\"Orange\",0.5,IF(D53=\"Brown\",0.25,0))))","v":0},null,null,null,null,{"$f":"IF(I53=\"Green\",1,IF(I53=\"Yellow\",0.75,IF(I53=\"Orange\",0.5,IF(I53=\"Brown\",0.25,0))))","v":0}]
[null,null,"40m headway"]
[null,null,"-2m/s² EVT acceleration",null,null,{"$f":"IF(D55=\"Green\",1,IF(D55=\"Yellow\",0.75,IF(D55=\"Orange\",0.5,IF(D55=\"Brown\",0.25,0))))","v":0},null,null,null,null,{"$f":"IF(I55=\"Green\",1,IF(I55=\"Yellow\",0.75,IF(I55=\"Orange\",0.5,IF(I55=\"Brown\",0.25,0))))","v":0}]
[null,null,"-6m/s² EVT acceleration",null,null,{"$f":"IF(D56=\"Green\",1,IF(D56=\"Yellow\",0.75,IF(D56=\"Orange\",0.5,IF(D56=\"Brown\",0.25,0))))","v":0},null,null,null,null,{"$f":"IF(I56=\"Green\",1,IF(I56=\"Yellow\",0.75,IF(I56=\"Orange\",0.5,IF(I56=\"Brown\",0.25,0))))","v":0}]
[null,"VCRb RESULT",null,{"$f":"SUM(F52:H53,F55:H56)/4","v":0},null,null,null,null,{"$f":"SUM(K52:M53,K55:M56)/4","v":0}]
[]
[null,"VERIFICATION TESTS"]
[null,null,null,"Testpoint",null,"Prediction","Vimpact","Points","Testpoint","ESS","Prediction","Vimpact","Points"]
[null,null,null,null,null,null,null,{"$f":"IF(G61=\"\",\"\",actual_AEB_score(D61,G61,F61))","v":""},null,null,null,null,{"$f":"IF(L61=\"\",\"\",actual_AEB_score(I61,L61,K61))","v":""}]
[null,null,null,null,null,null,null,{"$f":"IF(G62=\"\",\"\",actual_AEB_score(D62,G62,F62))","v":""},null,null,null,null,{"$f":"IF(L62=\"\",\"\",actual_AEB_score(I62,L62,K62))","v":""}]
[null,null,null,null,null,null,null,{"$f":"IF(G63=\"\",\"\",actual_AEB_score(D63,G63,F63))","v":""},null,null,null,null,{"$f":"IF(L63=\"\",\"\",actual_AEB_score(I63,L63,K63))","v":""}]
[null,null,null,null,null,null,null,{"$f":"IF(G64=\"\",\"\",actual_AEB_score(D64,G64,F64))","v":""},null,null,null,null,{"$f":"IF(L64=\"\",\"\",actual_AEB_score(I64,L64,K64))","v":""}]
[null,null,null,null,null,null,null,{"$f":"IF(G65=\"\",\"\",actual_AEB_score(D65,G65,F65))","v":""},null,null,null,null,{"$f":"IF(L65=\"\",\"\",actual_AEB_score(I65,L65,K65))","v":""}]
[null,null,null,null,null,null,null,{"$f":"IF(G66=\"\",\"\",actual_AEB_score(D66,G66,F66))","v":""},null,null,null,null,{"$f":"IF(L66=\"\",\"\",actual_AEB_score(I66,L66,K66))","v":""}]
[null,null,null,null,null,null,null,{"$f":"IF(G67=\"\",\"\",actual_AEB_score(D67,G67,F67))","v":""},null,null,null,null,{"$f":"IF(L67=\"\",\"\",actual_AEB_score(I67,L67,K67))","v":""}]
[null,null,null,null,null,null,null,{"$f":"IF(G68=\"\",\"\",actual_AEB_score(D68,G68,F68))","v":""},null,null,null,null,{"$f":"IF(L68=\"\",\"\",actual_AEB_score(I68,L68,K68))","v":""}]
[null,null,null,null,null,null,null,{"$f":"IF(G69=\"\",\"\",actual_AEB_score(D69,G69,F69))","v":""},null,null,null,null,{"$f":"IF(L69=\"\",\"\",actual_AEB_score(I69,L69,K69))","v":""}]
[null,null,null,null,null,null,null,{"$f":"IF(G70=\"\",\"\",actual_AEB_score(D70,G70,F70))","v":""},null,null,null,null,{"$f":"IF(L70=\"\",\"\",actual_AEB_score(I70,L70,K70))","v":""}]
[null,null,null,null,null,null,null,{"$f":"IF(G71=\"\",\"\",actual_AEB_score(D71,G71,F71))","v":""},null,null,null,null,{"$f":"IF(L71=\"\",\"\",actual_AEB_score(I71,L71,K71))","v":""}]
[null,null,null,null,null,null,null,{"$f":"IF(G72=\"\",\"\",actual_AEB_score(D72,G72,F72))","v":""},null,null,null,null,{"$f":"IF(L72=\"\",\"\",actual_AEB_score(I72,L72,K72))","v":""}]
[null,null,null,null,null,null,null,{"$f":"IF(G73=\"\",\"\",actual_AEB_score(D73,G73,F73))","v":""},null,null,null,null,{"$f":"IF(L73=\"\",\"\",actual_AEB_score(I73,L73,K73))","v":""}]
[null,null,null,null,null,null,null,{"$f":"IF(G74=\"\",\"\",actual_AEB_score(D74,G74,F74))","v":""},null,null,null,null,{"$f":"IF(L74=\"\",\"\",actual_AEB_score(I74,L74,K74))","v":""}]
[null,null,null,null,null,null,null,{"$f":"IF(G75=\"\",\"\",actual_AEB_score(D75,G75,F75))","v":""},null,null,null,null,{"$f":"IF(L75=\"\",\"\",actual_AEB_score(I75,L75,K75))","v":""}]
[null,null,null,null,null,null,null,{"$f":"IF(G76=\"\",\"\",actual_AEB_score(D76,G76,F76))","v":""},null,null,null,null,{"$f":"IF(L76=\"\",\"\",actual_AEB_score(I76,L76,K76))","v":""}]
[null,null,null,null,null,null,null,{"$f":"IF(G77=\"\",\"\",actual_AEB_score(D77,G77,F77))","v":""},null,null,null,null,{"$f":"IF(L77=\"\",\"\",actual_AEB_score(I77,L77,K77))","v":""}]
[null,null,null,null,null,null,null,{"$f":"IF(G78=\"\",\"\",actual_AEB_score(D78,G78,F78))","v":""},null,null,null,null,{"$f":"IF(L78=\"\",\"\",actual_AEB_score(I78,L78,K78))","v":""}]
[null,null,null,null,null,null,null,{"$f":"IF(G79=\"\",\"\",actual_AEB_score(D79,G79,F79))","v":""},null,null,null,null,{"$f":"IF(L79=\"\",\"\",actual_AEB_score(I79,L79,K79))","v":""}]
[null,null,null,null,null,null,null,{"$f":"IF(G80=\"\",\"\",actual_AEB_score(D80,G80,F80))","v":""},null,null,null,null,{"$f":"IF(L80=\"\",\"\",actual_AEB_score(I80,L80,K80))","v":""}]
[null,"Total",null,null,null,{"$f":"(COUNTIF(F61:F80,\"Green\")*1)+(COUNTIF(F61:F80,\"Yellow\")*0.75)+(COUNTIF(F61:F80,\"Orange\")*0.5)+(COUNTIF(F61:F80,\"Brown\")*0.25)","v":0},null,{"$f":"SUM(H61:H80)","v":0},null,null,{"$f":"(COUNTIF(K61:K80,\"Green\")*1)+(COUNTIF(K61:K80,\"Yellow\")*0.75)+(COUNTIF(K61:K80,\"Orange\")*0.5)+(COUNTIF(K61:K80,\"Brown\")*0.25)","v":0},null,{"$f":"SUM(M61:M80)","v":0}]
[]
[null,"Correction factor",null,{"$f":"IF(F81=0,0,ROUND(H81/F81,Round))","v":0},null,null,null,null,{"$f":"IF(K81=0,0,ROUND(M81/K81,Round))","v":0}]
[]
[null,"VCFtap"]
[null,"Testpoints VCFtap",null,"Test speed",null,"GVT speed"]
[null,null,null,null,null,"30 km/h","45 km/h","55 km/h"]
[null,null,null,null,"10 km/h"]
[null,null,null,null,"15 km/h"]
[null,null,null,null,"20 km/h"]
[null,"VCFtap RESULT",null,{"$f":"COUNTIF(F88:H90,\"Green\")/9","v":0}]
[]
[null,"HMI"]
[null,null,"Additional HMI features"]
[null,null,"Suplementary warning",null,null,{"$f":"IF(D95=\"Yes\",1,0)","v":0}]
[null,null,"Restraint activation / dynamic retractors",null,null,{"$f":"IF(D96=\"Yes\",1,0)","v":0}]
[null,"HMI RESULT",null,{"$f":"SUM(F95:M96)/2","v":0}]
[]
[null,"SUMMARY"]
[null,null,"VCRs (prediction x correction factor)",{"$f":"IF(COUNTIF(D18:H20,\"Green\")=15,D33*D83,0)","v":0},null,null,null,null,{"$f":"MIN(I33*I83,1)","v":0}]
[null,null,"VCRm (prediction x correction factor)",{"$f":"MIN(D47*D83,1)","v":0},null,null,null,null,{"$f":"MIN(I47*I83,1)","v":0}]
[null,null,"VCRb",{"$f":"D57","v":0},null,null,null,null,{"$f":"I57","v":0}]
[null,null,"VCFtap",{"$f":"D91","v":0}]
[null,null,"HMI",{"$f":"D97","v":0}]
[]
[null,"TOTAL"]
[null,null,"AEB",{"$f":"ROUND(AVERAGE(D100:H102)*2,Round)","v":0}]
[null,null,"FCW",{"$f":"ROUND(AVERAGE(I100:M102)*1.5,Round)","v":0}]
[null,null,"VCFtap",{"$f":"ROUND(D103*2,Round)","v":0}]
[null,null,"HMI",{"$f":"D104*0.5","v":0}]
[]
[null,"TOTAL AEB CAR-TO-CAR",null,{"$f":"IF(D15=\"PASS\",SUM(D107:M110),0)","v":0}]

{"sheet":"LSS","index":7,"n_rows":72,"n_cols":16,"rows_kept":72,"cut":false,"hidden":false,"merged":[[7,3,7,14],[8,3,8,14],[9,3,9,14],[10,1,10,14],[11,3,11,14],[12,3,12,14],[1,1,2,2],[1,3,3,14],[3,1,3,2],[4,3,4,14],[5,3,5,14],[6,3,6,14],[17,3,17,5],[17,6,17,8],[17,9,17,11],[17,12,17,14],[18,3,18,5],[18,6,18,8],[18,9,18,11],[18,12,18,14],[13,1,13,2],[13,3,13,14],[14,1,14,14],[15,3,15,14],[16,3,16,5],[16,6,16,8],[16,9,16,11],[16,12,16,14],[22,1,22,2],[22,3,22,14],[19,3,19,5],[19,6,19,8],[19,9,19,11],[19,12,19,14],[20,3,20,5],[20,6,20,8],[20,9,20,11],[20,12,20,14],[23,3,23,8],[23,9,23,14],[24,3,24,8],[24,9,24,14],[25,3,25,8],[25,9,25,14],[21,3,21,5],[21,6,21,8],[21,9,21,11],[21,12,21,14],[29,3,29,14],[30,3,30,14],[31,3,31,14],[32,3,32,14],[33,3,33,14],[34,1,34,2],[34,3,34,14],[26,3,26,8],[26,9,26,14],[27,3,27,8],[27,9,27,14],[28,1,28,2],[28,3,28,14],[38,3,38,8],[38,9,38,14],[39,3,39,8],[39,9,39,14],[40,3,40,8],[40,9,40,14],[35,3,35,8],[35,9,35,14],[36,3,36,8],[36,9,36,14],[37,3,37,8],[37,9,37,14],[44,3,44,8],[44,9,44,14],[45,3,45,8],[45,9,45,14],[46,3,46,8],[46,9,46,14],[41,3,41,8],[41,9,41,14],[42,3,42,8],[42,9,42,14],[43,3,43,8],[43,9,43,14],[51,3,51,8],[51,9,51,14],[52,3,52,5],[52,6,52,8],[52,9,52,11],[52,12,52,14],[47,1,47,2],[47,3,47,14],[48,1,48,14],[49,1,49,2],[49,3,49,14],[50,1,50,14],[55,3,55,5],[55,6,55,8],[55,9,55,11],[55,12,55,14],[56,3,56,5],[56,6,56,8],[56,9,56,11],[56,12,56,14],[53,3,53,5],[53,6,53,8],[53,9,53,11],[53,12,53,14],[54,3,54,5],[54,6,54,8],[54,9,54,11],[54,12,54,14],[60,1,60,14],[61,3,61,14],[62,3,62,14],[63,3,63,14],[64,1,64,2],[64,3,64,14],[57,1,57,2],[57,3,57,8],[57,9,57,14],[58,1,58,14],[59,1,59,2],[59,3,59,14],[70,1,70,14],[71,1,71,2],[71,3,71,14],[65,1,65,14],[66,1,66,2],[66,3,66,14],[67,3,67,14],[68,3,68,14],[69,3,69,14]]}
[3]
[null,"Lane Support Systems"]
[]
[]
[null,"SYSTEM DETAILS"]
[null,null,"System Name",null,null,null,null,null,null,null,null,null,null,null,null,{"$f":"D6","v":0}]
[null,null,"Default ON (partly)"]
[null,null,"Functionality"]
[null,null,"Speed range (km/h) - Minimum",null,null,null,null,null,null,null,null,null,null,null,null,{"$f":"D9","v":0}]
[null,null,"Maximum",null,null,null,null,null,null,null,null,null,null,null,null,{"$f":"D10","v":0}]
[]
[null,"PREREQUISITES"]
[null,null,"ESC meeting R13H"]
[null,"PREREQUISITES",null,{"$f":"IF(AND(D13=\"YES\"),\"PASS\",\"FAIL\")","v":"FAIL"}]
[]
[null,"Emergency Lane Keeping"]
[null,null,"Road Edge","No line",null,null,"Center line",null,null,"Center & Dashed line",null,null,"Center & Solid line"]
[null,null,0.2]
[null,null,0.3]
[null,null,0.4]
[null,null,0.5]
[null,null,null,{"$f":"IF(OR(COUNTIF(D18:F21,\">=-0.1\")=4,COUNTIF(D18:F21,\">=-0,1\")=4),0.25,0)","v":0},null,null,{"$f":"IF(OR(COUNTIF(G18:I21,\">=-0.1\")=4,COUNTIF(G18:I21,\">=-0,1\")=4),0.25,0)","v":0},null,null,{"$f":"IF(OR(COUNTIF(J18:L21,\">=-0.1\")=4,COUNTIF(J18:L21,\">=-0,1\")=4),0.25,0)","v":0},null,null,{"$f":"IF(OR(COUNTIF(M18:O21,\">=-0.1\")=4,COUNTIF(M18:O21,\">=-0,1\")=4),0.25,0)","v":0}]
[null,"ELK Road Edge assessment",null,{"$f":"SUM(D22:O22)","v":0}]
[null,null,"Solid Line","Driver side",null,null,null,null,null,"Passenger side"]
[null,null,0.2]
[null,null,0.3]
[null,null,0.4]
[null,null,0.5]
[null,"Solid Line assessment",null,{"$f":"IF(OR(COUNTIF(D25:O28,\">=-0.3\")=8,COUNTIF(D25:O28,\">=-0,3\")=8),0.5,0)","v":0}]
[null,null,"Oncoming vehicle"]
[null,null,0.3]
[null,null,0.4]
[null,null,0.5]
[null,null,0.6]
[null,"ELK Oncoming vehicle assessment",null,{"$f":"IF(COUNTIF(D31:O34,\"PASS\")=4,1,0)","v":0}]
[null,null,"Overtaking vehicle (GVT @ 72km/h)","Unintentional",null,null,null,null,null,"Intentional"]
[null,null,0.3]
[null,null,0.4]
[null,null,0.5]
[null,null,0.6]
[null,null,0.7]
[null,null,"Overtaking vehicle (GVT @ 80km/h)"]
[null,null,0.3]
[null,null,0.4]
[null,null,0.5]
[null,null,0.6]
[null,null,0.7]
[null,"ELK Overtaking vehicle assessment",null,{"$f":"IF(COUNTIF(D37:O47,\"PASS\")=14,0.5,0)","v":0}]
[]
[null,"ELK RESULT",null,{"$f":"SUM(D23,D29,D35,D48)","v":0}]
[]
[null,"Lane Keep Assist",null,"Dashed Line",null,null,null,null,null,"Solid Line"]
[null,null,null,"Driver side",null,null,"Passenger side",null,null,"Driver side",null,null,"Passenger side"]
[null,null,0.2]
[null,null,0.3]
[null,null,0.4]
[null,null,0.5]
[null,"LKA assessment",null,{"$f":"IF(OR(COUNTIF(D54:I57,\">=-0.3\")=8,COUNTIF(D54:I57,\">=-0,3\")=8),0.25,0)","v":0},null,null,null,null,null,{"$f":"IF(OR(COUNTIF(J54:O57,\">=-0.3\")=8,COUNTIF(J54:O57,\">=-0,3\")=8),0.25,0)","v":0}]
[]
[null,"LKA RESULT",null,{"$f":"SUM(D58,J58)","v":0}]
[]
[null,"HMI"]
[null,1,"Lane Departure Warning"]
[null,2,"Blind Spot Monitoring"]
[null,"HMI RESULT",null,{"$f":"IF(OR(D63=\"PASS\",D64=\"PASS\"),0.5,0)","v":0}]
[]
[null,"SUMMARY"]
[null,null,"ELK",{"$f":"D50","v":0}]
[null,null,"LKA",{"$f":"D60","v":0}]
[null,null,"HMI",{"$f":"D65","v":0}]
[]
[null,"TOTAL Lane Support Systems",null,{"$f":"IF(D14=\"FAIL\",0,ROUND(SUM(D68:O70),Round))","v":0}]

{"sheet":"SAS 2023","index":8,"n_rows":72,"n_cols":6,"rows_kept":72,"cut":false,"hidden":true,"merged":[[68,3,68,4],[69,3,69,4],[71,1,71,2],[71,3,71,4],[54,3,54,4],[55,3,55,4],[56,3,56,4],[65,1,65,2],[65,3,65,4],[67,1,67,2],[67,3,67,4],[53,3,53,4],[1,1,2,2],[1,3,2,4],[3,1,3,2],[4,3,4,4],[5,3,5,4],[7,3,7,4],[8,3,8,4],[14,3,14,4],[15,3,15,4],[51,1,51,2],[51,3,51,4]]}
[]
[null,"Speed Assist System 2023"]
[]
[null,null,null,"Value","Score"]
[null,"SYSTEM DETAILS"]
[null,null,"System name",null,null,{"$f":"D6","v":0}]
[]
[null,"SPEED LIMIT INFORMATION FUNCTION"]
[null,null,"Type of system"]
[null,null,"General requirements - GSR compliant",null,{"$f":"D10","v":0}]
[null,null,"Warning function"]
[null,null,"Default ON at start of every journey",null,{"$f":"D12","v":0}]
[null,null,"Visual warning in direct field of driver's view",null,{"$f":"D13","v":0}]
[null,null,"Type of warning",null,{"$f":"IF(D14=\"\",\"\",IF(D14<>\"Other\",\"Pass\",\"Fail\"))","v":""}]
[null,null,"General requirements assessment",{"$f":"IF(COUNTIFS(E10:E14,\"Pass\")=4,0.5,0)","v":0}]
[null,null,"Advanced Functions - Conditional speed limits"]
[null,null,"Weather - Rain / Wetness",null,{"$f":"IF(D17=\"Pass\",2,0)","v":0}]
[null,null,"Weather - Snow / Icy",null,{"$f":"IF(D18=\"Pass\",2,0)","v":0}]
[null,null,"Time",null,{"$f":"IF(D19=\"Pass\",3,0)","v":0}]
[null,null,"Distance For / In",null,{"$f":"IF(D20=\"Pass\",1,0)","v":0}]
[null,null,"Arrows",null,{"$f":"IF(D21=\"Pass\",1,0)","v":0}]
[null,null,"Vehicle Categories",null,{"$f":"IF(D22=\"Pass\",1,0)","v":0}]
[null,null,"Implicit Speed Limits - Highway / Motorway",null,{"$f":"IF(D23=\"Pass\",2,0)","v":0}]
[null,null,"Implicit Speed Limits - City Entry / Exit",null,{"$f":"IF(D24=\"Pass\",3,0)","v":0}]
[null,null,"Implicit Speed Limits - Residential Zones",null,{"$f":"IF(D25=\"Pass\",2,0)","v":0}]
[null,null,"Dynamic Speed Limits",null,{"$f":"IF(D26=\"Pass\",3,0)","v":0}]
[null,null,"Conditional speed limits total",null,{"$f":"SUM(E17:E26)","v":0}]
[null,null,"Advanced Functions - Road features"]
[null,null,"Curves",null,{"$f":"IF(AND(D29=\"Pass\",IF(LEFT(D$55,1)=\"I\",1,0)=1),2,0)","v":0}]
[null,null,"Roundabouts",null,{"$f":"IF(AND(D30=\"Pass\",IF(LEFT(D$55,1)=\"I\",1,0)=1),2,0)","v":0}]
[null,null,"Junctions",null,{"$f":"IF(AND(D31=\"Pass\",IF(LEFT(D$55,1)=\"I\",1,0)=1),1,0)","v":0}]
[null,null,"Traffic lights",null,{"$f":"IF(D32=\"Pass\",2,0)","v":0}]
[null,null,"Stop signs",null,{"$f":"IF(D33=\"Pass\",1,0)","v":0}]
[null,null,"Yield/Give way signs",null,{"$f":"IF(D34=\"Pass\",1,0)","v":0}]
[null,null,"No entry",null,{"$f":"IF(D35=\"Pass\",1,0)","v":0}]
[null,null,"Road features total",null,{"$f":"SUM(E29:E35)","v":0}]
[null,null,"Advanced Functions - Local hazards"]
[null,null,"Traffic jams",null,{"$f":"IF(D38=\"Pass\",2,0)","v":0}]
[null,null,"Construction zones",null,{"$f":"IF(D39=\"Pass\",1,0)","v":0}]
[null,null,"Accident ahead",null,{"$f":"IF(D40=\"Pass\",1,0)","v":0}]
[null,null,"Wrong way driver",null,0]
[null,null,"Stopped vehicle on hard shoulder",null,0]
[null,null,"Items in road (including animals, people, debris etc.)",null,0]
[null,null,"Poor road conditions (including slippery roads)",null,0]
[null,null,"Poor weather conditions (including fog, heavy rain, etc.)",null,0]
[null,null,"Emergency vehicle",null,0]
[null,null,"Local hazards total",null,{"$f":"SUM(E38:E46)","v":0}]
[null,null,"Advanced Functions - System updates"]
[null,null,null,"Continuous",{"$f":"IF(D49=\"Quarterly\",5,IF(D49=\"Continuous\",10,0))","v":10}]
[null,null,"System updates total",null,{"$f":"E49","v":10}]
[]
[null,"SPEED LIMIT INFORMATION FUNCTION RESULT",null,{"$f":"IF(D15=0,0,D15+E27*(0.25/20)+E36*(0.25/10)+E47*(0.25/10)+E50*(0.25/10))","v":0}]
[]
[null,"SPEED CONTROL FUNCTION"]
[null,null,"Speed control function type (setting Vadj)"]
[null,null,"Speed control:"]
[null,null,"50 km/h test"]
[null,null,"Vstab",null,{"$f":"IF(AND(D58<>\"\",D58>=45),\"Pass\",\"Fail\")","v":"Fail"}]
[null,null,"difference between Vstab and Vadj",{"$f":"IF(D58=\"\",\"\",50-D58)","v":""}]
[null,null,"80 km/h test"]
[null,null,"Vstab",null,{"$f":"IF(AND(D61<>\"\",D61>=75),\"Pass\",\"Fail\")","v":"Fail"}]
[null,null,"difference between Vstab and Vadj",{"$f":"IF(D61=\"\",\"\",80-D61)","v":""}]
[null,null,"120 km/h test"]
[null,null,"Vstab",null,{"$f":"IF(AND(D64<>\"\",D64>=115),\"Pass\",\"Fail\")","v":"Fail"}]
[null,null,"difference between Vstab and Vadj",{"$f":"IF(D64=\"\",\"\",120-D64)","v":""}]
[null,"SPEED CONTROL FUNCTION RESULT",null,{"$f":"IF(AND(D59<=5,D62<=5,D65<=5),IF(OR(D55=\"Intelligent Speed Limiter default ON\",D55=\"Intelligent ACC\"),1.5,IF(D55=\"Intelligent Speed Limiter not default ON\",1,IF(D55=\"Speed limitation function\",0.5,0))),0)","v":0}]
[]
[null,"SUMMARY"]
[null,null,"Speed Limit Information Function",{"$f":"D52","v":0}]
[null,null,"Speed Control Function",{"$f":"D66","v":0}]
[]
[null,"TOTAL SAS",null,{"$f":"ROUND(SUM(D69:E70),Round)","v":0}]

{"sheet":"SAS 2020","index":9,"n_rows":49,"n_cols":5,"rows_kept":49,"cut":false,"hidden":false,"merged":[[8,3,8,4],[28,1,28,2],[28,3,28,4],[6,3,6,4],[1,3,2,4],[4,3,4,4],[5,3,5,4],[9,3,9,4],[11,3,11,4],[1,1,3,2],[48,1,48,2],[48,3,48,4],[42,1,42,2],[42,3,42,4],[45,3,45,4],[44,1,44,2],[44,3,44,4],[30,3,30,4],[31,3,31,4],[46,3,46,4],[33,3,33,4],[32,3,32,4]]}
[]
[null,"Speed Assistance System 2020"]
[]
[null,null,null,"Value","Score"]
[null,"SYSTEM DETAILS"]
[null,null,"System name"]
[null,null,"Functionality"]
[]
[null,"SPEED LIMIT INFORMATION FUNCTION"]
[null,null,"Type of system"]
[null,null,"General requirements",null,{"$f":"IF(D11=\"Pass\",0.5,0)","v":0}]
[null,null,"Advanced Functions"]
[null,null,"Weather - Rain / Wetness",null,{"$f":"IF(D13=\"Pass\",0.05,0)","v":0}]
[null,null,"Weather - Snow / Icy",null,{"$f":"IF(D14=\"Pass\",0.05,0)","v":0}]
[null,null,"Time",null,{"$f":"IF(D15=\"Pass\",0.075,0)","v":0}]
[null,null,"Distance For / In",null,{"$f":"IF(D16=\"Pass\",0.025,0)","v":0}]
[null,null,"Arrows",null,{"$f":"IF(D17=\"Pass\",0.025,0)","v":0}]
[null,null,"Vehicle Categories",null,{"$f":"IF(D18=\"Pass\",0.025,0)","v":0}]
[null,null,"Implicit Speed Limits - Highway / Motorway",null,{"$f":"IF(D19=\"Pass\",0.05,0)","v":0}]
[null,null,"Implicit Speed Limits - City Entry / Exit",null,{"$f":"IF(D20=\"Pass\",0.075,0)","v":0}]
[null,null,"Implicit Speed Limits - Residential Zones",null,{"$f":"IF(D21=\"Pass\",0.05,0)","v":0}]
[null,null,"Dynamic Speed Limits",null,{"$f":"IF(D22=\"Pass\",0.075,0)","v":0}]
[null,null,"System Accuracy",null,{"$f":"IF(SUM(E13:E22)>0.3,0.25,0)","v":0}]
[null,null,"Map update",null,{"$f":"IF(D24=\"\",\"\",IF(D24<>\"Other\",\"Pass\",\"Fail\"))","v":""}]
[null,null,"Warning Function",null,{"$f":"IF(AND(E26=\"Pass\",E27=\"Pass\",E28=\"Pass\"),0.25,0)","v":0}]
[null,null,"Position of warning",null,{"$f":"IF(D26=\"\",\"\",IF(D26<>\"Other\",\"Pass\",\"Fail\"))","v":""}]
[null,null,"Type of warning",null,{"$f":"IF(D27=\"\",\"\",IF(D27<>\"Other\",\"Pass\",\"Fail\"))","v":""}]
[null,null,"Total duration ",null,{"$f":"IF(D28=\"\",\"\",IF(AND(D28<>\"\",D28>=10),\"Pass\",\"Fail\"))","v":""}]
[null,"SPEED LIMIT INFORMATION FUNCTION RESULT",null,{"$f":"SUM(E11:E25)","v":0}]
[]
[null,"SPEED CONTROL FUNCTION"]
[null,null,"Setting Vadj"]
[]
[null,null,"50 km/h test"]
[null,null,"Vstab",null,{"$f":"IF(AND(D35<>\"\",D35>=45),\"Pass\",\"Fail\")","v":"Fail"}]
[null,null,"difference between Vstab and Vadj",{"$f":"IF(D35=\"\",\"\",50-D35)","v":""}]
[null,null,"80 km/h test"]
[null,null,"Vstab",null,{"$f":"IF(AND(D38<>\"\",D38>=75),\"Pass\",\"Fail\")","v":"Fail"}]
[null,null,"difference between Vstab and Vadj",{"$f":"IF(D38=\"\",\"\",80-D38)","v":""}]
[null,null,"120 km/h test"]
[null,null,"Vstab",null,{"$f":"IF(AND(D41<>\"\",D41>=115),\"Pass\",\"Fail\")","v":"Fail"}]
[null,null,"difference between Vstab and Vadj",{"$f":"IF(D41=\"\",\"\",120-D41)","v":""}]
[null,"SPEED CONTROL FUNCTION RESULT",null,{"$f":"IF(AND(D36<=5,D39<=5,D42<=5),IF(D32=\"System advised\",1.5,IF(D32=\"Manually set\",IF(D29>0,0.75,1.25),0)),0)","v":0}]
[]
[null,"SUMMARY"]
[null,null,"Speed Limit Information Function",{"$f":"D29","v":0}]
[null,null,"Speed Control Function",{"$f":"D43","v":0}]
[]
[null,"TOTAL SAS",null,{"$f":"ROUND(SUM(D46:E47),Round)","v":0}]

{"sheet":"OSM","index":10,"n_rows":21,"n_cols":6,"rows_kept":21,"cut":false,"hidden":false,"merged":[[1,1,3,2],[13,1,13,2],[13,3,13,6],[15,1,15,2],[15,3,15,6],[10,3,10,4],[10,5,10,6],[11,3,11,4],[11,5,12,6],[12,3,12,4],[8,1,8,2],[3,5,3,6],[8,3,8,4],[8,5,8,6],[3,3,3,4],[6,5,6,6],[17,3,17,6],[19,1,19,2],[19,3,19,6],[16,3,16,6],[7,3,7,4],[7,5,7,6],[6,3,6,4],[5,5,5,6],[5,3,5,4],[1,3,2,4],[4,3,4,4],[1,5,2,6],[4,5,4,6]]}
[]
[null,"Occupant Status Monitoring",null,"Driver",null,"Front Passenger"]
[]
[null,null,null,"Score",null,"Score"]
[null,"SEAT BELT REMINDER"]
[null,null,"Occupant detection"]
[null,null,"Visual warning"]
[null,null,"Audible warning"]
[null,"Seat Belt Reminder assessment",null,{"$f":"IF(COUNTIF(D6:E8,\"Pass\")=2,1,0)","v":0},null,{"$f":"IF(COUNTIF(F6:G8,\"Pass\")=3,1,0)","v":0}]
[]
[null,"DRIVER MONITORING"]
[null,null,"Default ON",null,null,{"$f":"IF(AND(D12=\"PASS\",D13=\"PASS\"),1,0)","v":0}]
[null,null,"Attention Assist fitment"]
[null,"Driver Monitoring assessment",null,{"$f":"F12","v":0}]
[]
[null,"SUMMARY"]
[null,null,"Seat Belt Reminder assessment",{"$f":"IF(OR(D6:G8=\"FAIL\"),0,SUM(D9:G9))","v":0}]
[null,null,"Driver Monitoring assessment",{"$f":"D14","v":0}]
[]
[null,"TOTAL OCCUPANT STATUS MONITORING",null,{"$f":"D17+D18","v":0}]
[null,null,null,{"$f":"IF(AND(D9=2,#REF!>0),\"All seats\",IF(D9=2,\"Front seats\",\"Not available\"))","v":{"$error":"#REF!"}}]

{"sheet":"Summary","index":11,"n_rows":410,"n_cols":6,"rows_kept":410,"cut":false,"hidden":true,"merged":[]}
["Make",{"$f":"'General Overview'!C3","v":0},"text"]
["Model",{"$f":"'General Overview'!C4","v":0},"text"]
["Full Tested Vehicle",{"$f":"'General Overview'!C5","v":0},"text"]
["Rating/grading",{"$f":"'OVERALL RATING'!F2","v":"NOT RECOMMENDED"},"platinum - gold - silver - bronze - not recommended"]
["Safety Assist Performance score",{"$f":"'OVERALL RATING'!F14","v":0},"%"]
["Specification"]
["Body type",{"$f":"'General Overview'!C6","v":0},"Monocoque"]
["Category",{"$f":"'General Overview'!C7","v":0},"text","N1 - N2"]
["Kerb weight",{"$f":"'General Overview'!C9","v":0},"number"]
["Maximum Payload",{"$f":"'General Overview'!C11","v":0},"number"]
["Test weight",{"$f":"'General Overview'!C12","v":0},"number"]
["Applies to",{"$f":"'General Overview'!C17","v":0},"x generation"]
["Safety equipment"]
["SBR - Driver",{"$f":"'N1 Fitment'!V35","v":"N/A"},"standard/optional/not available"]
["SBR - Passenger",{"$f":"'N1 Fitment'!X35","v":"N/A"},"standard/optional/not available"]
["AEB Car-to-Car",{"$f":"'N1 Fitment'!N35","v":"N/A"},"standard/optional/not available"]
["AEB Pedestrian",{"$f":"'N1 Fitment'!O35","v":"N/A"},"standard/optional/not available"]
["AEB Cyclist",{"$f":"'N1 Fitment'!P35","v":"N/A"},"standard/optional/not available"]
["Attention Assist",{"$f":"'N1 Fitment'!T35","v":"N/A"},"standard/optional/not available"]
["LSS",{"$f":"'N1 Fitment'!AD35","v":"N/A"},"standard/optional/not available"]
["SAS",{"$f":"'N1 Fitment'!AF35","v":"N/A"},"standard/optional/not available"]
["OSM combined",{"$f":"'N1 Fitment'!AE35","v":"N/A"},null,null,null,"NEW 2403"]
["Verdict",{"$f":"'OVERALL RATING'!B18","v":0},"text"]
["Comment",{"$f":"'OVERALL RATING'!B19","v":0},"text"]
["Safety Assist Performance Details"]
["AEB Car-to-Car - score",{"$f":"IF(B16=\"n/a\",\"N/A$\",'OVERALL RATING'!G6)","v":"N/A$"},"number - 1 decimal"]
["AEB Car-to-Car - colour",{"$f":"IF(B16=\"N/A\",\"Grey\",Colour_ADAS('OVERALL RATING'!G6/'OVERALL RATING'!B6))","v":"Grey"},"Green - Yellow - Orange - Brown - Red"]
["AEB_Type",{"$f":"IF(B26=\"N/A$\",\"N/A\",CONCATENATE(IF('AEB Car-to-Car'!D7=\"YES\",\"AEB\",\"\"),IF(AND('AEB Car-to-Car'!D7=\"YES\",'AEB Car-to-Car'!I7=\"YES\"),\" & \",\"\"),IF('AEB Car-to-Car'!I7=\"YES\",\"FCW\",\"\")))","v":"N/A"},"text"]
["AEB_Operational from",{"$f":"IF(B26=\"N/A$\",\"N/A\",MIN('AEB Car-to-Car'!D8,'AEB Car-to-Car'!I8))","v":"N/A"},"text"]
["Autobrake function only"]
["AFO_Approaching a stationary car - right overlap",null,"Green - Yellow - Orange - Brown - Red"]
["AFO_Approaching a stationary car - no overlap",null,"Green - Yellow - Orange - Brown - Red"]
["AFO_Approaching a stationary car - left overlap",null,"Green - Yellow - Orange - Brown - Red"]
["AFO_Approaching a slower moving car - right overlap",null,"Green - Yellow - Orange - Brown - Red"]
["AFO_Approaching a slower moving car - no overlap",null,"Green - Yellow - Orange - Brown - Red"]
["AFO_Approaching a slower moving car - left overlap",null,"Green - Yellow - Orange - Brown - Red"]
["AFO_Approaching a braking car",null,"Green - Yellow - Orange - Brown - Red"]
["Driver Reacts to Warning"]
["DRW_Approaching a stationary car - right overlap",null,"Green - Yellow - Orange - Brown - Red"]
["DRW_Approaching a stationary car - no overlap",null,"Green - Yellow - Orange - Brown - Red"]
["DRW_Approaching a stationary car - left overlap",null,"Green - Yellow - Orange - Brown - Red"]
["DRW_Approaching a slower moving car - right overlap",null,"Green - Yellow - Orange - Brown - Red"]
["DRW_Approaching a slower moving car - no overlap",null,"Green - Yellow - Orange - Brown - Red"]
["DRW_Approaching a slower moving car - left overlap",null,"Green - Yellow - Orange - Brown - Red"]
["DRW_Approaching a braking car",null,"Green - Yellow - Orange - Brown - Red"]
["AEB Pedestrian - score",{"$f":"IF(B17=\"n/a\",\"N/A$\",'OVERALL RATING'!G7)","v":"N/A$"},"number - 1 decimal"]
["AEB Pedestrian - colour",{"$f":"IF(B17=\"N/A\",\"Grey\",Colour_ADAS('OVERALL RATING'!G7/'OVERALL RATING'!B7))","v":"Grey"},"Green - Yellow - Orange - Brown - Red"]
["Adult crossing the road",null,"Green - Yellow - Orange - Brown - Red"]
["Child running from behind parked vehicles",null,"Green - Yellow - Orange - Brown - Red"]
["Adult along the roadside",null,"Green - Yellow - Orange - Brown - Red"]
["AEB Cyclist - score",{"$f":"IF(B18=\"n/a\",\"N/A$\",'OVERALL RATING'!G8)","v":"N/A$"},"number - 1 decimal"]
["AEB Cyclist - colour",{"$f":"IF(B18=\"N/A\",\"Grey\",Colour_ADAS('OVERALL RATING'!G8/'OVERALL RATING'!B8))","v":"Grey"},"Green - Yellow - Orange - Brown - Red"]
["Cyclist crossing",null,"Green - Yellow - Orange - Brown - Red"]
["Cyclist along the roadside",null,"Green - Yellow - Orange - Brown - Red"]
["Speed assistance - score",{"$f":"IF(B21=\"N/A\",\"N/A$\",'OVERALL RATING'!G10)","v":"N/A$"},"number - 1 decimal"]
["Speed assistance - colour",{"$f":"IF(B55=\"N/A$\",\"Grey\",Colour_ADAS('OVERALL RATING'!G10/'OVERALL RATING'!B10))","v":"Grey"},"Green - Yellow - Orange - Brown - Red"]
["SA_Speed limit information function",{"$f":"IF('SAS 2020'!D10=0,\"N/A\",'SAS 2020'!D10)","v":"N/A"},"text"]
["SA_Speed limitation function",{"$f":"IF('SAS 2020'!D32=0,\"N/A\",'SAS 2020'!D32)","v":"N/A"},"text"]
["OSM - score",{"$f":"IF('N1 Fitment'!AE35=\"N/A\",\"N/A$\",'OVERALL RATING'!G11)","v":"N/A$"},"number - 1 decimal"]
["OSM - colour",{"$f":"IF(B59=\"N/A$\",\"Grey\",Colour_ADAS('OVERALL RATING'!G11/'OVERALL RATING'!B11))","v":"Grey"},"Green - Yellow - Orange - Brown - Red"]
["OSM_Attention Assist Driver",{"$f":"IF('N1 Fitment'!T35=\"N/A\",\"Not available\",IF(OSM!D14>0,\"Pass\",\"Fail\"))","v":"Not available"},"pass/fail/not available"]
["OSM_Driver seat - visual",{"$f":"IF(OSM!D7=\"-\",\"Not available\",OSM!D7)","v":0},"pass/fail/not available"]
["OSM_Driver seat - audible",{"$f":"IF(OSM!D8=\"-\",\"Not available\",OSM!D8)","v":0},"pass/fail/not available"]
["OSM_Front Passenger - visual",{"$f":"IF(OSM!F7=\"-\",\"Not available\",OSM!F7)","v":0},"pass/fail/not available"]
["OSM_Front Passenger - audible",{"$f":"IF(OSM!F8=\"-\",\"Not available\",OSM!F8)","v":0},"pass/fail/not available"]
["OSM_Front Passenger - occupant detection",{"$f":"IF(OSM!F6=\"-\",\"Not available\",OSM!F6)","v":0},"pass/fail/not available"]
["Lane Support - score",{"$f":"IF(B20=\"N/A\",\"N/A$\",'OVERALL RATING'!G9)","v":"N/A$"},"number - 1 decimal"]
["Lane Support - colour",{"$f":"IF(B67=\"N/A$\",\"Grey\",Colour_ADAS('OVERALL RATING'!G9/'OVERALL RATING'!B9))","v":"Grey"},"Green - Yellow - Orange - Brown - Red"]
["LSS_Type",{"$f":"IF(B20=\"N/A\",\"N/A\",CONCATENATE(IF('N1 Fitment'!Q35<>\"N/A\",\"ELK/LKA\",\"\"),IF(AND('N1 Fitment'!Q35<>\"N/A\",'N1 Fitment'!R35<>\"N/A\",'N1 Fitment'!S35=\"N/A\"),\" & \",\"\"),IF(AND('N1 Fitment'!Q35<>\"N/A\",'N1 Fitment'!R35<>\"N/A\",'N1 Fitment'!S35<>\"N/A\"),\", \",\"\"),IF('N1 Fitment'!R35<>\"N/A\",\"LDW\",\"\"),IF(AND('N1 Fitment'!S35<>\"N/A\",'N1 Fitment'!S35<>\"N/A\"),\" & \",\"\"),IF('N1 Fitment'!S35<>\"N/A\",\"BLIS\",\"\")))","v":"N/A"},"text"]
["LSS_Operational from",{"$f":"IF(B20=\"N/A\",\"N/A\",LSS!D9)","v":"N/A"},"text"]
["LSS_Emergency lane keeping",{"$f":"IF('N1 Fitment'!Q35=\"N/A\",\"N/A\",Colour_ADAS(LSS!D68/3))","v":"N/A"},"Green - Yellow - Orange - Brown - Red"]
["LSS_Lane Departure Warning",{"$f":"IF('N1 Fitment'!R35=\"N/A\",\"Not available\",LSS!D63)","v":"Not available"},"pass/fail/not available"]
["LSS_Blind Spot Information System",{"$f":"IF('N1 Fitment'!S35=\"N/A\",\"Not available\",LSS!D64)","v":"Not available"},"pass/fail/not available"]
["Fitment"]
["AEB Car-to-Car_AT",{"$f":"'N1 Fitment'!N6","v":0},"standard/optional/not available"]
["AEB Car-to-Car_BE",{"$f":"'N1 Fitment'!N7","v":0},"standard/optional/not available"]
["AEB Car-to-Car_BG",{"$f":"'N1 Fitment'!N8","v":0},"standard/optional/not available"]
["AEB Car-to-Car_HR",{"$f":"'N1 Fitment'!N9","v":0},"standard/optional/not available"]
["AEB Car-to-Car_CY",{"$f":"'N1 Fitment'!N10","v":0},"standard/optional/not available"]
["AEB Car-to-Car_CZ",{"$f":"'N1 Fitment'!N11","v":0},"standard/optional/not available"]
["AEB Car-to-Car_DK",{"$f":"'N1 Fitment'!N12","v":0},"standard/optional/not available"]
["AEB Car-to-Car_EE",{"$f":"'N1 Fitment'!N13","v":0},"standard/optional/not available"]
["AEB Car-to-Car_FI",{"$f":"'N1 Fitment'!N14","v":0},"standard/optional/not available"]
["AEB Car-to-Car_FR",{"$f":"'N1 Fitment'!N15","v":0},"standard/optional/not available"]
["AEB Car-to-Car_DE",{"$f":"'N1 Fitment'!N16","v":0},"standard/optional/not available"]
["AEB Car-to-Car_GR",{"$f":"'N1 Fitment'!N17","v":0},"standard/optional/not available"]
["AEB Car-to-Car_HU",{"$f":"'N1 Fitment'!N18","v":0},"standard/optional/not available"]
["AEB Car-to-Car_IE",{"$f":"'N1 Fitment'!N19","v":0},"standard/optional/not available"]
["AEB Car-to-Car_IT",{"$f":"'N1 Fitment'!N20","v":0},"standard/optional/not available"]
["AEB Car-to-Car_LV",{"$f":"'N1 Fitment'!N21","v":0},"standard/optional/not available"]
["AEB Car-to-Car_LT",{"$f":"'N1 Fitment'!N22","v":0},"standard/optional/not available"]
["AEB Car-to-Car_LU",{"$f":"'N1 Fitment'!N23","v":0},"standard/optional/not available"]
["AEB Car-to-Car_MT",{"$f":"'N1 Fitment'!N24","v":0},"standard/optional/not available"]
["AEB Car-to-Car_NL",{"$f":"'N1 Fitment'!N25","v":0},"standard/optional/not available"]
["AEB Car-to-Car_PL",{"$f":"'N1 Fitment'!N27","v":0},"standard/optional/not available"]
["AEB Car-to-Car_PT",{"$f":"'N1 Fitment'!N28","v":0},"standard/optional/not available"]
["AEB Car-to-Car_RO",{"$f":"'N1 Fitment'!N29","v":0},"standard/optional/not available"]
["AEB Car-to-Car_SK",{"$f":"'N1 Fitment'!N30","v":0},"standard/optional/not available"]
["AEB Car-to-Car_SI",{"$f":"'N1 Fitment'!N31","v":0},"standard/optional/not available"]
["AEB Car-to-Car_ES",{"$f":"'N1 Fitment'!N32","v":0},"standard/optional/not available"]
["AEB Car-to-Car_SE",{"$f":"'N1 Fitment'!N33","v":0},"standard/optional/not available"]
["AEB Car-to-Car_GB",{"$f":"'N1 Fitment'!N34","v":0},"standard/optional/not available"]
["AEB Pedestrian_AT",{"$f":"'N1 Fitment'!O6","v":0},"standard/optional/not available"]
["AEB Pedestrian_BE",{"$f":"'N1 Fitment'!O7","v":0},"standard/optional/not available"]
["AEB Pedestrian_BG",{"$f":"'N1 Fitment'!O8","v":0},"standard/optional/not available"]
["AEB Pedestrian_HR",{"$f":"'N1 Fitment'!O9","v":0},"standard/optional/not available"]
["AEB Pedestrian_CY",{"$f":"'N1 Fitment'!O10","v":0},"standard/optional/not available"]
["AEB Pedestrian_CZ",{"$f":"'N1 Fitment'!O11","v":0},"standard/optional/not available"]
["AEB Pedestrian_DK",{"$f":"'N1 Fitment'!O12","v":0},"standard/optional/not available"]
["AEB Pedestrian_EE",{"$f":"'N1 Fitment'!O13","v":0},"standard/optional/not available"]
["AEB Pedestrian_FI",{"$f":"'N1 Fitment'!O14","v":0},"standard/optional/not available"]
["AEB Pedestrian_FR",{"$f":"'N1 Fitment'!O15","v":0},"standard/optional/not available"]
["AEB Pedestrian_DE",{"$f":"'N1 Fitment'!O16","v":0},"standard/optional/not available"]
["AEB Pedestrian_GR",{"$f":"'N1 Fitment'!O17","v":0},"standard/optional/not available"]
["AEB Pedestrian_HU",{"$f":"'N1 Fitment'!O18","v":0},"standard/optional/not available"]
["AEB Pedestrian_IE",{"$f":"'N1 Fitment'!O19","v":0},"standard/optional/not available"]
["AEB Pedestrian_IT",{"$f":"'N1 Fitment'!O20","v":0},"standard/optional/not available"]
["AEB Pedestrian_LV",{"$f":"'N1 Fitment'!O21","v":0},"standard/optional/not available"]
["AEB Pedestrian_LT",{"$f":"'N1 Fitment'!O22","v":0},"standard/optional/not available"]
["AEB Pedestrian_LU",{"$f":"'N1 Fitment'!O23","v":0},"standard/optional/not available"]
["AEB Pedestrian_MT",{"$f":"'N1 Fitment'!O24","v":0},"standard/optional/not available"]
["AEB Pedestrian_NL",{"$f":"'N1 Fitment'!O25","v":0},"standard/optional/not available"]
["AEB Pedestrian_PL",{"$f":"'N1 Fitment'!O27","v":0},"standard/optional/not available"]
["AEB Pedestrian_PT",{"$f":"'N1 Fitment'!O28","v":0},"standard/optional/not available"]
["AEB Pedestrian_RO",{"$f":"'N1 Fitment'!O29","v":0},"standard/optional/not available"]
["AEB Pedestrian_SK",{"$f":"'N1 Fitment'!O30","v":0},"standard/optional/not available"]
["AEB Pedestrian_SI",{"$f":"'N1 Fitment'!O31","v":0},"standard/optional/not available"]
["AEB Pedestrian_ES",{"$f":"'N1 Fitment'!O32","v":0},"standard/optional/not available"]
["AEB Pedestrian_SE",{"$f":"'N1 Fitment'!O33","v":0},"standard/optional/not available"]
["AEB Pedestrian_GB",{"$f":"'N1 Fitment'!O34","v":0},"standard/optional/not available"]
["AEB Cyclist_AT",{"$f":"'N1 Fitment'!P6","v":0},"standard/optional/not available"]
["AEB Cyclist_BE",{"$f":"'N1 Fitment'!P7","v":0},"standard/optional/not available"]
["AEB Cyclist_BG",{"$f":"'N1 Fitment'!P8","v":0},"standard/optional/not available"]
["AEB Cyclist_HR",{"$f":"'N1 Fitment'!P9","v":0},"standard/optional/not available"]
["AEB Cyclist_CY",{"$f":"'N1 Fitment'!P10","v":0},"standard/optional/not available"]
["AEB Cyclist_CZ",{"$f":"'N1 Fitment'!P11","v":0},"standard/optional/not available"]
["AEB Cyclist_DK",{"$f":"'N1 Fitment'!P12","v":0},"standard/optional/not available"]
["AEB Cyclist_EE",{"$f":"'N1 Fitment'!P13","v":0},"standard/optional/not available"]
["AEB Cyclist_FI",{"$f":"'N1 Fitment'!P14","v":0},"standard/optional/not available"]
["AEB Cyclist_FR",{"$f":"'N1 Fitment'!P15","v":0},"standard/optional/not available"]
["AEB Cyclist_DE",{"$f":"'N1 Fitment'!P16","v":0},"standard/optional/not available"]
["AEB Cyclist_GR",{"$f":"'N1 Fitment'!P17","v":0},"standard/optional/not available"]
["AEB Cyclist_HU",{"$f":"'N1 Fitment'!P18","v":0},"standard/optional/not available"]
["AEB Cyclist_IE",{"$f":"'N1 Fitment'!P19","v":0},"standard/optional/not available"]
["AEB Cyclist_IT",{"$f":"'N1 Fitment'!P20","v":0},"standard/optional/not available"]
["AEB Cyclist_LV",{"$f":"'N1 Fitment'!P21","v":0},"standard/optional/not available"]
["AEB Cyclist_LT",{"$f":"'N1 Fitment'!P22","v":0},"standard/optional/not available"]
["AEB Cyclist_LU",{"$f":"'N1 Fitment'!P23","v":0},"standard/optional/not available"]
["AEB Cyclist_MT",{"$f":"'N1 Fitment'!P24","v":0},"standard/optional/not available"]
["AEB Cyclist_NL",{"$f":"'N1 Fitment'!P25","v":0},"standard/optional/not available"]
["AEB Cyclist_PL",{"$f":"'N1 Fitment'!P27","v":0},"standard/optional/not available"]
["AEB Cyclist_PT",{"$f":"'N1 Fitment'!P28","v":0},"standard/optional/not available"]
["AEB Cyclist_RO",{"$f":"'N1 Fitment'!P29","v":0},"standard/optional/not available"]
["AEB Cyclist_SK",{"$f":"'N1 Fitment'!P30","v":0},"standard/optional/not available"]
["AEB Cyclist_SI",{"$f":"'N1 Fitment'!P31","v":0},"standard/optional/not available"]
["AEB Cyclist_ES",{"$f":"'N1 Fitment'!P32","v":0},"standard/optional/not available"]
["AEB Cyclist_SE",{"$f":"'N1 Fitment'!P33","v":0},"standard/optional/not available"]
["AEB Cyclist_GB",{"$f":"'N1 Fitment'!P34","v":0},"standard/optional/not available"]
["LSS_ELK/LKA_AT",{"$f":"'N1 Fitment'!Q6","v":0},"standard/optional/not available"]
["LSS_ELK/LKA_BE",{"$f":"'N1 Fitment'!Q7","v":0},"standard/optional/not available"]
["LSS_ELK/LKA_BG",{"$f":"'N1 Fitment'!Q8","v":0},"standard/optional/not available"]
["LSS_ELK/LKA_HR",{"$f":"'N1 Fitment'!Q9","v":0},"standard/optional/not available"]
["LSS_ELK/LKA_CY",{"$f":"'N1 Fitment'!Q10","v":0},"standard/optional/not available"]
["LSS_ELK/LKA_CZ",{"$f":"'N1 Fitment'!Q11","v":0},"standard/optional/not available"]
["LSS_ELK/LKA_DK",{"$f":"'N1 Fitment'!Q12","v":0},"standard/optional/not available"]
["LSS_ELK/LKA_EE",{"$f":"'N1 Fitment'!Q13","v":0},"standard/optional/not available"]
["LSS_ELK/LKA_FI",{"$f":"'N1 Fitment'!Q14","v":0},"standard/optional/not available"]
["LSS_ELK/LKA_FR",{"$f":"'N1 Fitment'!Q15","v":0},"standard/optional/not available"]
["LSS_ELK/LKA_DE",{"$f":"'N1 Fitment'!Q16","v":0},"standard/optional/not available"]
["LSS_ELK/LKA_GR",{"$f":"'N1 Fitment'!Q17","v":0},"standard/optional/not available"]
["LSS_ELK/LKA_HU",{"$f":"'N1 Fitment'!Q18","v":0},"standard/optional/not available"]
["LSS_ELK/LKA_IE",{"$f":"'N1 Fitment'!Q19","v":0},"standard/optional/not available"]
["LSS_ELK/LKA_IT",{"$f":"'N1 Fitment'!Q20","v":0},"standard/optional/not available"]
["LSS_ELK/LKA_LV",{"$f":"'N1 Fitment'!Q21","v":0},"standard/optional/not available"]
["LSS_ELK/LKA_LT",{"$f":"'N1 Fitment'!Q22","v":0},"standard/optional/not available"]
["LSS_ELK/LKA_LU",{"$f":"'N1 Fitment'!Q23","v":0},"standard/optional/not available"]
["LSS_ELK/LKA_MT",{"$f":"'N1 Fitment'!Q24","v":0},"standard/optional/not available"]
["LSS_ELK/LKA_NL",{"$f":"'N1 Fitment'!Q25","v":0},"standard/optional/not available"]
["LSS_ELK/LKA_PL",{"$f":"'N1 Fitment'!Q27","v":0},"standard/optional/not available"]
["LSS_ELK/LKA_PT",{"$f":"'N1 Fitment'!Q28","v":0},"standard/optional/not available"]
["LSS_ELK/LKA_RO",{"$f":"'N1 Fitment'!Q29","v":0},"standard/optional/not available"]
["LSS_ELK/LKA_SK",{"$f":"'N1 Fitment'!Q30","v":0},"standard/optional/not available"]
["LSS_ELK/LKA_SI",{"$f":"'N1 Fitment'!Q31","v":0},"standard/optional/not available"]
["LSS_ELK/LKA_ES",{"$f":"'N1 Fitment'!Q32","v":0},"standard/optional/not available"]
["LSS_ELK/LKA_SE",{"$f":"'N1 Fitment'!Q33","v":0},"standard/optional/not available"]
["LSS_ELK/LKA_GB",{"$f":"'N1 Fitment'!Q34","v":0},"standard/optional/not available"]
["LSS_LDW_AT",{"$f":"'N1 Fitment'!R6","v":0},"standard/optional/not available"]
["LSS_LDW_BE",{"$f":"'N1 Fitment'!R7","v":0},"standard/optional/not available"]
["LSS_LDW_BG",{"$f":"'N1 Fitment'!R8","v":0},"standard/optional/not available"]
["LSS_LDW_HR",{"$f":"'N1 Fitment'!R9","v":0},"standard/optional/not available"]
["LSS_LDW_CY",{"$f":"'N1 Fitment'!R10","v":0},"standard/optional/not available"]
["LSS_LDW_CZ",{"$f":"'N1 Fitment'!R11","v":0},"standard/optional/not available"]
["LSS_LDW_DK",{"$f":"'N1 Fitment'!R12","v":0},"standard/optional/not available"]
["LSS_LDW_EE",{"$f":"'N1 Fitment'!R13","v":0},"standard/optional/not available"]
["LSS_LDW_FI",{"$f":"'N1 Fitment'!R14","v":0},"standard/optional/not available"]
["LSS_LDW_FR",{"$f":"'N1 Fitment'!R15","v":0},"standard/optional/not available"]
["LSS_LDW_DE",{"$f":"'N1 Fitment'!R16","v":0},"standard/optional/not available"]
["LSS_LDW_GR",{"$f":"'N1 Fitment'!R17","v":0},"standard/optional/not available"]
["LSS_LDW_HU",{"$f":"'N1 Fitment'!R18","v":0},"standard/optional/not available"]
["LSS_LDW_IE",{"$f":"'N1 Fitment'!R19","v":0},"standard/optional/not available"]
["LSS_LDW_IT",{"$f":"'N1 Fitment'!R20","v":0},"standard/optional/not available"]
["LSS_LDW_LV",{"$f":"'N1 Fitment'!R21","v":0},"standard/optional/not available"]
["LSS_LDW_LT",{"$f":"'N1 Fitment'!R22","v":0},"standard/optional/not available"]
["LSS_LDW_LU",{"$f":"'N1 Fitment'!R23","v":0},"standard/optional/not available"]
["LSS_LDW_MT",{"$f":"'N1 Fitment'!R24","v":0},"standard/optional/not available"]
["LSS_LDW_NL",{"$f":"'N1 Fitment'!R25","v":0},"standard/optional/not available"]
["LSS_LDW_PL",{"$f":"'N1 Fitment'!R27","v":0},"standard/optional/not available"]
["LSS_LDW_PT",{"$f":"'N1 Fitment'!R28","v":0},"standard/optional/not available"]
["LSS_LDW_RO",{"$f":"'N1 Fitment'!R29","v":0},"standard/optional/not available"]
["LSS_LDW_SK",{"$f":"'N1 Fitment'!R30","v":0},"standard/optional/not available"]
["LSS_LDW_SI",{"$f":"'N1 Fitment'!R31","v":0},"standard/optional/not available"]
["LSS_LDW_ES",{"$f":"'N1 Fitment'!R32","v":0},"standard/optional/not available"]
["LSS_LDW_SE",{"$f":"'N1 Fitment'!R33","v":0},"standard/optional/not available"]
["LSS_LDW_GB",{"$f":"'N1 Fitment'!R34","v":0},"standard/optional/not available"]
["LSS_BLIS_AT",{"$f":"'N1 Fitment'!S6","v":0},"standard/optional/not available"]
["LSS_BLIS_BE",{"$f":"'N1 Fitment'!S7","v":0},"standard/optional/not available"]
["LSS_BLIS_BG",{"$f":"'N1 Fitment'!S8","v":0},"standard/optional/not available"]
["LSS_BLIS_HR",{"$f":"'N1 Fitment'!S9","v":0},"standard/optional/not available"]
["LSS_BLIS_CY",{"$f":"'N1 Fitment'!S10","v":0},"standard/optional/not available"]
["LSS_BLIS_CZ",{"$f":"'N1 Fitment'!S11","v":0},"standard/optional/not available"]
["LSS_BLIS_DK",{"$f":"'N1 Fitment'!S12","v":0},"standard/optional/not available"]
["LSS_BLIS_EE",{"$f":"'N1 Fitment'!S13","v":0},"standard/optional/not available"]
["LSS_BLIS_FI",{"$f":"'N1 Fitment'!S14","v":0},"standard/optional/not available"]
["LSS_BLIS_FR",{"$f":"'N1 Fitment'!S15","v":0},"standard/optional/not available"]
["LSS_BLIS_DE",{"$f":"'N1 Fitment'!S16","v":0},"standard/optional/not available"]
["LSS_BLIS_GR",{"$f":"'N1 Fitment'!S17","v":0},"standard/optional/not available"]
["LSS_BLIS_HU",{"$f":"'N1 Fitment'!S18","v":0},"standard/optional/not available"]
["LSS_BLIS_IE",{"$f":"'N1 Fitment'!S19","v":0},"standard/optional/not available"]
["LSS_BLIS_IT",{"$f":"'N1 Fitment'!S20","v":0},"standard/optional/not available"]
["LSS_BLIS_LV",{"$f":"'N1 Fitment'!S21","v":0},"standard/optional/not available"]
["LSS_BLIS_LT",{"$f":"'N1 Fitment'!S22","v":0},"standard/optional/not available"]
["LSS_BLIS_LU",{"$f":"'N1 Fitment'!S23","v":0},"standard/optional/not available"]
["LSS_BLIS_MT",{"$f":"'N1 Fitment'!S24","v":0},"standard/optional/not available"]
["LSS_BLIS_NL",{"$f":"'N1 Fitment'!S25","v":0},"standard/optional/not available"]
["LSS_BLIS_PL",{"$f":"'N1 Fitment'!S27","v":0},"standard/optional/not available"]
["LSS_BLIS_PT",{"$f":"'N1 Fitment'!S28","v":0},"standard/optional/not available"]
["LSS_BLIS_RO",{"$f":"'N1 Fitment'!S29","v":0},"standard/optional/not available"]
["LSS_BLIS_SK",{"$f":"'N1 Fitment'!S30","v":0},"standard/optional/not available"]
["LSS_BLIS_SI",{"$f":"'N1 Fitment'!S31","v":0},"standard/optional/not available"]
["LSS_BLIS_ES",{"$f":"'N1 Fitment'!S32","v":0},"standard/optional/not available"]
["LSS_BLIS_SE",{"$f":"'N1 Fitment'!S33","v":0},"standard/optional/not available"]
["LSS_BLIS_GB",{"$f":"'N1 Fitment'!S34","v":0},"standard/optional/not available"]
["SA_SLIF_AT",{"$f":"'N1 Fitment'!Z6","v":0},"standard/optional/not available"]
["SA_SLIF_BE",{"$f":"'N1 Fitment'!Z7","v":0},"standard/optional/not available"]
["SA_SLIF_BG",{"$f":"'N1 Fitment'!Z8","v":0},"standard/optional/not available"]
["SA_SLIF_HR",{"$f":"'N1 Fitment'!Z9","v":0},"standard/optional/not available"]
["SA_SLIF_CY",{"$f":"'N1 Fitment'!Z10","v":0},"standard/optional/not available"]
["SA_SLIF_CZ",{"$f":"'N1 Fitment'!Z11","v":0},"standard/optional/not available"]
["SA_SLIF_DK",{"$f":"'N1 Fitment'!Z12","v":0},"standard/optional/not available"]
["SA_SLIF_EE",{"$f":"'N1 Fitment'!Z13","v":0},"standard/optional/not available"]
["SA_SLIF_FI",{"$f":"'N1 Fitment'!Z14","v":0},"standard/optional/not available"]
["SA_SLIF_FR",{"$f":"'N1 Fitment'!Z15","v":0},"standard/optional/not available"]
["SA_SLIF_DE",{"$f":"'N1 Fitment'!Z16","v":0},"standard/optional/not available"]
["SA_SLIF_GR",{"$f":"'N1 Fitment'!Z17","v":0},"standard/optional/not available"]
["SA_SLIF_HU",{"$f":"'N1 Fitment'!Z18","v":0},"standard/optional/not available"]
["SA_SLIF_IE",{"$f":"'N1 Fitment'!Z19","v":0},"standard/optional/not available"]
["SA_SLIF_IT",{"$f":"'N1 Fitment'!Z20","v":0},"standard/optional/not available"]
["SA_SLIF_LV",{"$f":"'N1 Fitment'!Z21","v":0},"standard/optional/not available"]
["SA_SLIF_LT",{"$f":"'N1 Fitment'!Z22","v":0},"standard/optional/not available"]
["SA_SLIF_LU",{"$f":"'N1 Fitment'!Z23","v":0},"standard/optional/not available"]
["SA_SLIF_MT",{"$f":"'N1 Fitment'!Z24","v":0},"standard/optional/not available"]
["SA_SLIF_NL",{"$f":"'N1 Fitment'!Z25","v":0},"standard/optional/not available"]
["SA_SLIF_PL",{"$f":"'N1 Fitment'!Z27","v":0},"standard/optional/not available"]
["SA_SLIF_PT",{"$f":"'N1 Fitment'!Z28","v":0},"standard/optional/not available"]
["SA_SLIF_RO",{"$f":"'N1 Fitment'!Z29","v":0},"standard/optional/not available"]
["SA_SLIF_SK",{"$f":"'N1 Fitment'!Z30","v":0},"standard/optional/not available"]
["SA_SLIF_SI",{"$f":"'N1 Fitment'!Z31","v":0},"standard/optional/not available"]
["SA_SLIF_ES",{"$f":"'N1 Fitment'!Z32","v":0},"standard/optional/not available"]
["SA_SLIF_SE",{"$f":"'N1 Fitment'!Z33","v":0},"standard/optional/not available"]
["SA_SLIF_GB",{"$f":"'N1 Fitment'!Z34","v":0},"standard/optional/not available"]
["SA_SCF_AT",{"$f":"'N1 Fitment'!Y6","v":0},"standard/optional/not available"]
["SA_SCF_BE",{"$f":"'N1 Fitment'!Y7","v":0},"standard/optional/not available"]
["SA_SCF_BG",{"$f":"'N1 Fitment'!Y8","v":0},"standard/optional/not available"]
["SA_SCF_HR",{"$f":"'N1 Fitment'!Y9","v":0},"standard/optional/not available"]
["SA_SCF_CY",{"$f":"'N1 Fitment'!Y10","v":0},"standard/optional/not available"]
["SA_SCF_CZ",{"$f":"'N1 Fitment'!Y11","v":0},"standard/optional/not available"]
["SA_SCF_DK",{"$f":"'N1 Fitment'!Y12","v":0},"standard/optional/not available"]
["SA_SCF_EE",{"$f":"'N1 Fitment'!Y13","v":0},"standard/optional/not available"]
["SA_SCF_FI",{"$f":"'N1 Fitment'!Y14","v":0},"standard/optional/not available"]
["SA_SCF_FR",{"$f":"'N1 Fitment'!Y15","v":0},"standard/optional/not available"]
["SA_SCF_DE",{"$f":"'N1 Fitment'!Y16","v":0},"standard/optional/not available"]
["SA_SCF_GR",{"$f":"'N1 Fitment'!Y17","v":0},"standard/optional/not available"]
["SA_SCF_HU",{"$f":"'N1 Fitment'!Y18","v":0},"standard/optional/not available"]
["SA_SCF_IE",{"$f":"'N1 Fitment'!Y19","v":0},"standard/optional/not available"]
["SA_SCF_IT",{"$f":"'N1 Fitment'!Y20","v":0},"standard/optional/not available"]
["SA_SCF_LV",{"$f":"'N1 Fitment'!Y21","v":0},"standard/optional/not available"]
["SA_SCF_LT",{"$f":"'N1 Fitment'!Y22","v":0},"standard/optional/not available"]
["SA_SCF_LU",{"$f":"'N1 Fitment'!Y23","v":0},"standard/optional/not available"]
["SA_SCF_MT",{"$f":"'N1 Fitment'!Y24","v":0},"standard/optional/not available"]
["SA_SCF_NL",{"$f":"'N1 Fitment'!Y25","v":0},"standard/optional/not available"]
["SA_SCF_PL",{"$f":"'N1 Fitment'!Y27","v":0},"standard/optional/not available"]
["SA_SCF_PT",{"$f":"'N1 Fitment'!Y28","v":0},"standard/optional/not available"]
["SA_SCF_RO",{"$f":"'N1 Fitment'!Y29","v":0},"standard/optional/not available"]
["SA_SCF_SK",{"$f":"'N1 Fitment'!Y30","v":0},"standard/optional/not available"]
["SA_SCF_SI",{"$f":"'N1 Fitment'!Y31","v":0},"standard/optional/not available"]
["SA_SCF_ES",{"$f":"'N1 Fitment'!Y32","v":0},"standard/optional/not available"]
["SA_SCF_SE",{"$f":"'N1 Fitment'!Y33","v":0},"standard/optional/not available"]
["SA_SCF_GB",{"$f":"'N1 Fitment'!Y34","v":0},"standard/optional/not available"]
["OSM_SBR Driver_AT",{"$f":"'N1 Fitment'!V6","v":0},"standard/optional/not available"]
["OSM_SBR Driver_BE",{"$f":"'N1 Fitment'!V7","v":0},"standard/optional/not available"]
["OSM_SBR Driver_BG",{"$f":"'N1 Fitment'!V8","v":0},"standard/optional/not available"]
["OSM_SBR Driver_HR",{"$f":"'N1 Fitment'!V9","v":0},"standard/optional/not available"]
["OSM_SBR Driver_CY",{"$f":"'N1 Fitment'!V10","v":0},"standard/optional/not available"]
["OSM_SBR Driver_CZ",{"$f":"'N1 Fitment'!V11","v":0},"standard/optional/not available"]
["OSM_SBR Driver_DK",{"$f":"'N1 Fitment'!V12","v":0},"standard/optional/not available"]
["OSM_SBR Driver_EE",{"$f":"'N1 Fitment'!V13","v":0},"standard/optional/not available"]
["OSM_SBR Driver_FI",{"$f":"'N1 Fitment'!V14","v":0},"standard/optional/not available"]
["OSM_SBR Driver_FR",{"$f":"'N1 Fitment'!V15","v":0},"standard/optional/not available"]
["OSM_SBR Driver_DE",{"$f":"'N1 Fitment'!V16","v":0},"standard/optional/not available"]
["OSM_SBR Driver_GR",{"$f":"'N1 Fitment'!V17","v":0},"standard/optional/not available"]
["OSM_SBR Driver_HU",{"$f":"'N1 Fitment'!V18","v":0},"standard/optional/not available"]
["OSM_SBR Driver_IE",{"$f":"'N1 Fitment'!V19","v":0},"standard/optional/not available"]
["OSM_SBR Driver_IT",{"$f":"'N1 Fitment'!V20","v":0},"standard/optional/not available"]
["OSM_SBR Driver_LV",{"$f":"'N1 Fitment'!V21","v":0},"standard/optional/not available"]
["OSM_SBR Driver_LT",{"$f":"'N1 Fitment'!V22","v":0},"standard/optional/not available"]
["OSM_SBR Driver_LU",{"$f":"'N1 Fitment'!V23","v":0},"standard/optional/not available"]
["OSM_SBR Driver_MT",{"$f":"'N1 Fitment'!V24","v":0},"standard/optional/not available"]
["OSM_SBR Driver_NL",{"$f":"'N1 Fitment'!V25","v":0},"standard/optional/not available"]
["OSM_SBR Driver_PL",{"$f":"'N1 Fitment'!V27","v":0},"standard/optional/not available"]
["OSM_SBR Driver_PT",{"$f":"'N1 Fitment'!V28","v":0},"standard/optional/not available"]
["OSM_SBR Driver_RO",{"$f":"'N1 Fitment'!V29","v":0},"standard/optional/not available"]
["OSM_SBR Driver_SK",{"$f":"'N1 Fitment'!V30","v":0},"standard/optional/not available"]
["OSM_SBR Driver_SI",{"$f":"'N1 Fitment'!V31","v":0},"standard/optional/not available"]
["OSM_SBR Driver_ES",{"$f":"'N1 Fitment'!V32","v":0},"standard/optional/not available"]
["OSM_SBR Driver_SE",{"$f":"'N1 Fitment'!V33","v":0},"standard/optional/not available"]
["OSM_SBR Driver_GB",{"$f":"'N1 Fitment'!V34","v":0},"standard/optional/not available"]
["OSM_SBR Passenger_AT",{"$f":"'N1 Fitment'!X6","v":0},"standard/optional/not available"]
["OSM_SBR Passenger_BE",{"$f":"'N1 Fitment'!X7","v":0},"standard/optional/not available"]
["OSM_SBR Passenger_BG",{"$f":"'N1 Fitment'!X8","v":0},"standard/optional/not available"]
["OSM_SBR Passenger_HR",{"$f":"'N1 Fitment'!X9","v":0},"standard/optional/not available"]
["OSM_SBR Passenger_CY",{"$f":"'N1 Fitment'!X10","v":0},"standard/optional/not available"]
["OSM_SBR Passenger_CZ",{"$f":"'N1 Fitment'!X11","v":0},"standard/optional/not available"]
["OSM_SBR Passenger_DK",{"$f":"'N1 Fitment'!X12","v":0},"standard/optional/not available"]
["OSM_SBR Passenger_EE",{"$f":"'N1 Fitment'!X13","v":0},"standard/optional/not available"]
["OSM_SBR Passenger_FI",{"$f":"'N1 Fitment'!X14","v":0},"standard/optional/not available"]
["OSM_SBR Passenger_FR",{"$f":"'N1 Fitment'!X15","v":0},"standard/optional/not available"]
["OSM_SBR Passenger_DE",{"$f":"'N1 Fitment'!X16","v":0},"standard/optional/not available"]
["OSM_SBR Passenger_GR",{"$f":"'N1 Fitment'!X17","v":0},"standard/optional/not available"]
["OSM_SBR Passenger_HU",{"$f":"'N1 Fitment'!X18","v":0},"standard/optional/not available"]
["OSM_SBR Passenger_IE",{"$f":"'N1 Fitment'!X19","v":0},"standard/optional/not available"]
["OSM_SBR Passenger_IT",{"$f":"'N1 Fitment'!X20","v":0},"standard/optional/not available"]
["OSM_SBR Passenger_LV",{"$f":"'N1 Fitment'!X21","v":0},"standard/optional/not available"]
["OSM_SBR Passenger_LT",{"$f":"'N1 Fitment'!X22","v":0},"standard/optional/not available"]
["OSM_SBR Passenger_LU",{"$f":"'N1 Fitment'!X23","v":0},"standard/optional/not available"]
["OSM_SBR Passenger_MT",{"$f":"'N1 Fitment'!X24","v":0},"standard/optional/not available"]
["OSM_SBR Passenger_NL",{"$f":"'N1 Fitment'!X25","v":0},"standard/optional/not available"]
["OSM_SBR Passenger_PL",{"$f":"'N1 Fitment'!X27","v":0},"standard/optional/not available"]
["OSM_SBR Passenger_PT",{"$f":"'N1 Fitment'!X28","v":0},"standard/optional/not available"]
["OSM_SBR Passenger_RO",{"$f":"'N1 Fitment'!X29","v":0},"standard/optional/not available"]
["OSM_SBR Passenger_SK",{"$f":"'N1 Fitment'!X30","v":0},"standard/optional/not available"]
["OSM_SBR Passenger_SI",{"$f":"'N1 Fitment'!X31","v":0},"standard/optional/not available"]
["OSM_SBR Passenger_ES",{"$f":"'N1 Fitment'!X32","v":0},"standard/optional/not available"]
["OSM_SBR Passenger_SE",{"$f":"'N1 Fitment'!X33","v":0},"standard/optional/not available"]
["OSM_SBR Passenger_GB",{"$f":"'N1 Fitment'!X34","v":0},"standard/optional/not available"]
["OSM_Attention Assist_AT",{"$f":"'N1 Fitment'!T6","v":0},"standard/optional/not available"]
["OSM_Attention Assist_BE",{"$f":"'N1 Fitment'!T7","v":0},"standard/optional/not available"]
["OSM_Attention Assist_BG",{"$f":"'N1 Fitment'!T8","v":0},"standard/optional/not available"]
["OSM_Attention Assist_HR",{"$f":"'N1 Fitment'!T9","v":0},"standard/optional/not available"]
["OSM_Attention Assist_CY",{"$f":"'N1 Fitment'!T10","v":0},"standard/optional/not available"]
["OSM_Attention Assist_CZ",{"$f":"'N1 Fitment'!T11","v":0},"standard/optional/not available"]
["OSM_Attention Assist_DK",{"$f":"'N1 Fitment'!T12","v":0},"standard/optional/not available"]
["OSM_Attention Assist_EE",{"$f":"'N1 Fitment'!T13","v":0},"standard/optional/not available"]
["OSM_Attention Assist_FI",{"$f":"'N1 Fitment'!T14","v":0},"standard/optional/not available"]
["OSM_Attention Assist_FR",{"$f":"'N1 Fitment'!T15","v":0},"standard/optional/not available"]
["OSM_Attention Assist_DE",{"$f":"'N1 Fitment'!T16","v":0},"standard/optional/not available"]
["OSM_Attention Assist_GR",{"$f":"'N1 Fitment'!T17","v":0},"standard/optional/not available"]
["OSM_Attention Assist_HU",{"$f":"'N1 Fitment'!T18","v":0},"standard/optional/not available"]
["OSM_Attention Assist_IE",{"$f":"'N1 Fitment'!T19","v":0},"standard/optional/not available"]
["OSM_Attention Assist_IT",{"$f":"'N1 Fitment'!T20","v":0},"standard/optional/not available"]
["OSM_Attention Assist_LV",{"$f":"'N1 Fitment'!T21","v":0},"standard/optional/not available"]
["OSM_Attention Assist_LT",{"$f":"'N1 Fitment'!T22","v":0},"standard/optional/not available"]
["OSM_Attention Assist_LU",{"$f":"'N1 Fitment'!T23","v":0},"standard/optional/not available"]
["OSM_Attention Assist_MT",{"$f":"'N1 Fitment'!T24","v":0},"standard/optional/not available"]
["OSM_Attention Assist_NL",{"$f":"'N1 Fitment'!T25","v":0},"standard/optional/not available"]
["OSM_Attention Assist_PL",{"$f":"'N1 Fitment'!T27","v":0},"standard/optional/not available"]
["OSM_Attention Assist_PT",{"$f":"'N1 Fitment'!T28","v":0},"standard/optional/not available"]
["OSM_Attention Assist_RO",{"$f":"'N1 Fitment'!T29","v":0},"standard/optional/not available"]
["OSM_Attention Assist_SK",{"$f":"'N1 Fitment'!T30","v":0},"standard/optional/not available"]
["OSM_Attention Assist_SI",{"$f":"'N1 Fitment'!T31","v":0},"standard/optional/not available"]
["OSM_Attention Assist_ES",{"$f":"'N1 Fitment'!T32","v":0},"standard/optional/not available"]
["OSM_Attention Assist_SE",{"$f":"'N1 Fitment'!T33","v":0},"standard/optional/not available"]
["OSM_Attention Assist_GB",{"$f":"'N1 Fitment'!T34","v":0},"standard/optional/not available"]
["AEB_C_C_Stationary_Autobrake",{"$f":"IF(B16=\"N/A\",\"Grey\",Colour_ADAS('AEB Car-to-Car'!D33))","v":"Grey"}]
["AEB_C_C_Stationary_Driver_Reacts",{"$f":"IF(B16=\"N/A\",\"Grey\",Colour_ADAS('AEB Car-to-Car'!I33))","v":"Grey"}]
["AEB_C_C_Slower_Moving_Autobrake",{"$f":"IF(B16=\"N/A\",\"Grey\",Colour_ADAS('AEB Car-to-Car'!D47))","v":"Grey"}]
["AEB_C_C_Slower_Moving_Driver_Reacts",{"$f":"IF(B16=\"N/A\",\"Grey\",Colour_ADAS('AEB Car-to-Car'!I47))","v":"Grey"}]
["AEB_C_C_Braking_Autobrake",{"$f":"IF(B16=\"N/A\",\"Grey\",Colour_ADAS('AEB Car-to-Car'!D57))","v":"Grey"}]
["AEB_C_C_Braking_Driver_Reacts",{"$f":"IF(B16=\"N/A\",\"Grey\",Colour_ADAS('AEB Car-to-Car'!I57))","v":"Grey"}]
["AEB_C_C_Turn_Across_Autobrake",{"$f":"IF(B16=\"N/A\",\"Grey\",Colour_ADAS('AEB Car-to-Car'!D91))","v":"Grey"}]
["AEB_Ped_Adult_Crossing_Day",{"$f":"IF(B17=\"N/A\",\"Grey\",Colour_ADAS(AVERAGE('AEB Pedestrian'!D114,'AEB Pedestrian'!D115,'AEB Pedestrian'!D116)))","v":"Grey"}]
["AEB_Ped_Adult_Crossing_Night",{"$f":"IF(B17=\"N/A\",\"Grey\",Colour_ADAS(AVERAGE('AEB Pedestrian'!F115,'AEB Pedestrian'!F116)))","v":"Grey"}]
["AEB_Ped_Adult_Along_Road_Day",{"$f":"IF(B17=\"N/A\",\"Grey\",Colour_ADAS(AVERAGE('AEB Pedestrian'!D118)))","v":"Grey"}]
["AEB_Ped_Adult_Along_Road_Night",{"$f":"IF(B17=\"N/A\",\"Grey\",Colour_ADAS(AVERAGE('AEB Pedestrian'!F118)))","v":"Grey"}]
["AEB_Ped_Child_Behind_Parked_Vehicles_Day",{"$f":"IF(B17=\"N/A\",\"Grey\",Colour_ADAS(AVERAGE('AEB Pedestrian'!D117)))","v":"Grey"}]
["AEB_Ped_Reversing_Standing_Pedestrian_Day",{"$f":"IF(B17=\"N/A\",\"Grey\",Colour_ADAS(AVERAGE('AEB Pedestrian'!D120)))","v":"Grey"}]
["AEB_Ped_Turn_Across_Path_Day",{"$f":"IF(B17=\"N/A\",\"Grey\",Colour_ADAS(AVERAGE('AEB Pedestrian'!D119)))","v":"Grey"}]
["AEB_Cyclist_Crossing",{"$f":"IF(B18=\"N/A\",\"Grey\",Colour_ADAS(AVERAGE('AEB Cyclist'!D81,'AEB Cyclist'!D82)))","v":"Grey"}]
["AEB_Cyclist_Along_Roadside",{"$f":"IF(B18=\"N/A\",\"Grey\",Colour_ADAS(AVERAGE('AEB Cyclist'!D84)))","v":"Grey"}]
["AEB_Cyclist_Nearside_Obstructed",{"$f":"IF(B18=\"N/A\",\"Grey\",Colour_ADAS(AVERAGE('AEB Cyclist'!D83)))","v":"Grey"}]
["AEB Car-to-Car_NO",{"$f":"'N1 Fitment'!N26","v":0}]
["AEB Pedestrian_NO",{"$f":"'N1 Fitment'!O26","v":0}]
["AEB Cyclist_NO",{"$f":"'N1 Fitment'!P$26","v":0}]
["LSS_ELK/LKA_NO",{"$f":"'N1 Fitment'!Q26","v":0}]
["LSS_LDW_NO",{"$f":"'N1 Fitment'!R26","v":0}]
["LSS_BLIS_NO",{"$f":"'N1 Fitment'!S26","v":0}]
["SA_SLIF_NO",{"$f":"'N1 Fitment'!Z26","v":0}]
["SA_SCF_NO",{"$f":"'N1 Fitment'!Y26","v":0}]
["OSM_SBR Driver_NO",{"$f":"'N1 Fitment'!V26","v":0}]
["OSM_SBR Passenger_NO",{"$f":"'N1 Fitment'!X26","v":0}]
["OSM_Attention Assist_NO",{"$f":"'N1 Fitment'!T26","v":0}]